{"text_format":"3","workbook":"xlsx","n_sheets":3,"sheets":["EXT","Translation","Selections"],"not_rendered":{"images":4,"defined_names":2,"comments":1},"read":"whole","date_system":"1900"}

{"sheet":"EXT","index":0,"n_rows":88,"n_cols":56,"rows_kept":88,"merged":[[0,43,0,46],[0,48,0,51],[0,53,0,56],[3,0,4,56],[5,0,5,56],[7,28,7,34],[7,35,7,43],[7,60,7,62],[8,1,9,25],[8,30,9,32],[8,38,9,40],[8,46,9,48],[8,49,9,51],[8,60,8,62],[9,60,9,62],[10,28,11,54],[10,60,10,62],[11,1,12,12],[11,13,12,15],[11,60,11,62],[12,36,12,41],[12,60,12,62],[13,30,14,32],[13,33,13,35],[13,36,13,38],[13,39,13,41],[13,46,14,56],[13,60,13,62],[14,33,14,35],[14,36,14,38],[14,39,14,41],[14,60,14,62],[15,14,16,16],[15,30,15,32],[15,33,15,35],[15,36,15,38],[15,39,15,41],[15,60,15,62],[16,30,16,32],[16,33,16,35],[16,36,16,38],[16,39,16,41],[17,1,18,5],[17,21,18,25],[17,30,17,32],[17,33,17,35],[17,36,17,38],[17,39,17,41],[18,30,18,32],[18,33,18,35],[18,36,18,38],[18,39,18,41],[19,1,20,3],[19,15,20,17],[19,21,20,23],[19,30,19,32],[19,33,19,35],[19,36,19,38],[19,39,19,41],[20,30,20,32],[20,33,20,35],[20,36,20,38],[20,39,20,41],[21,30,21,32],[21,33,21,35],[21,36,21,38],[21,39,21,41],[22,30,22,32],[22,33,22,35],[22,36,22,38],[22,39,22,41],[23,30,23,32],[23,33,23,35],[23,36,23,38],[23,39,23,41],[29,50,30,53],[30,45,30,46],[31,50,32,53],[33,29,34,38],[37,43,37,49],[43,50,43,55],[44,43,44,49],[44,50,44,55],[45,15,45,21],[46,15,46,21],[47,38,48,44],[48,15,48,21],[49,52,50,56],[50,1,51,11],[51,53,52,55],[52,33,53,35],[52,40,52,50],[56,20,56,30],[58,40,58,54],[61,20,61,30],[62,13,63,15],[63,48,63,54],[64,48,64,54],[66,20,66,30],[70,40,70,54],[71,24,71,30],[74,18,85,35],[75,48,75,54],[76,13,77,15],[76,48,76,54],[82,40,82,54],[85,48,85,54],[87,0,88,51],[87,52,88,52],[87,53,88,54],[87,55,88,56]]}
[]
[]
[]
[{"$f":"UPPER(Translation!C6)&\" EXT\"","v":"GARAGENTOR EXT"}]
[]
[{"$f":"Translation!C3","v":"Bestellformular"}]
[]
[null,{"$f":"Translation!C10","v":"Auftragsnummer"},{"$nulls":26},{"$f":"Translation!C11","v":"Stückzahl"},{"$nulls":6},{"$f":"Translation!C12","v":"Lieferwoche"}]
[{"$nulls":46},"DE"]
[]
[{"$nulls":28},{"$f":"Translation!C4","v":"Alles ist bestimmt bei INNENANSICHT"}]
[null,{"$f":"Translation!C16","v":"Sturzhöhe"}]
[{"$nulls":16},"mm",{"$nulls":19},"Min. CEL",{"$nulls":7},"GH",null,{"$f":"Translation!C203&\" \"&Translation!C204","v":"Allgemeine Höhe [mm]"}]
[{"$nulls":30},"GH",null,null,"FOH",null,null,{"$f":"Translation!C130","v":"Handbed."},null,null,{"$f":"Translation!C132","v":"Antrieb"},{"$nulls":4},"FOH",null,{"$f":"Translation!C205","v":"Höhe zur unteren Kante des Sturzprofiles [mm]"}]
[{"$nulls":33},"GH + 0",null,null,"GH + 100",null,null,"GH + 125"]
[{"$nulls":13},{"$f":"Translation!C17","v":"Lichte Breite"},{"$nulls":16},1875,null,null,{"$f":"AE16+0","v":1875},null,null,{"$f":"AE16+100","v":1975},null,null,{"$f":"AE16+(100+35-10)","v":2000},{"$nulls":4},"CEL",null,{"$f":"Translation!C206","v":"Deckenhöhe [mm]"}]
[{"$nulls":17},"mm",{"$nulls":12},1955,null,null,1955,null,null,2055,null,null,2080]
[null,{"$f":"Translation!C13& CHAR(10)& Translation!C14","v":"Leibung\nLinks"},{"$nulls":19},{"$f":"Translation!C13& CHAR(10)& Translation!C15","v":"Leibung\nRechts"},{"$nulls":8},2000,null,null,2000,null,null,2100,null,null,2125]
[{"$nulls":30},2080,null,null,2080,null,null,2180,null,null,2205]
[{"$nulls":14},{"$f":"Translation!C18","v":"Lichte Höhe"},{"$nulls":15},2125,null,null,2125,null,null,2225,null,null,2250]
[{"$nulls":4},"mm",{"$nulls":13},"mm",{"$nulls":5},"mm",{"$nulls":5},2250,null,null,2250,null,null,2350,null,null,2375]
[{"$nulls":30},2375,null,null,2375,null,null,2475,null,null,2500]
[{"$nulls":30},2500,null,null,2500,null,null,2600,null,null,2625]
[{"$nulls":30},2625,null,null,2625,null,null,2725,null,null,2750]
[{"$nulls":31},{"$f":"Translation!C210","v":"Standardsituation"},{"$nulls":8},{"$f":"Translation!C211","v":"Ungewöhnliche Situation"},{"$nulls":9},{"$f":"Translation!C211","v":"Ungewöhnliche Situation"}]
[null,{"$f":"Translation!C32","v":"Lamelle stucco"},{"$nulls":7},{"$f":"Translation!C33","v":"Lamelle glatt"},{"$nulls":9},{"$f":"Translation!C35","v":"Mittelsicke Woodgrain"},{"$nulls":11},"(GH = H)",{"$nulls":8},"(GH > H)",{"$nulls":9},"(GH < H)"]
[{"$nulls":3},"671; 9002/9010",{"$nulls":7},"695;",{"$f":"Translation!C167","v":"Nuss/9016"},{"$nulls":8},"660;","9016/9010"]
[{"$nulls":3},"684; 9005/9010",{"$nulls":7},"688;",{"$f":"Translation!C169","v":"Eiche Golden/9016"},{"$nulls":8},"661;","7016/9010"]
[{"$nulls":3},"672; 9010/9010",{"$nulls":5},{"$f":"Translation!C38","v":"Ohne Sicke stucco"},{"$nulls":11},"662;","9005/9010"]
[{"$nulls":3},"673; 9006/9010",{"$nulls":7},"699; ","9010/9010"]
[{"$nulls":3},"694; 9007/9010",{"$nulls":15},{"$f":"Translation!C36","v":"Mittelsicke Glatt"}]
[{"$nulls":3},"754; 1021/9010",{"$nulls":5},{"$f":"Translation!C39","v":"Ohne Sicke glatt"},{"$nulls":11},"663;",{"$f":"Translation!C173","v":"9016/9010"}]
[{"$nulls":3},"675; 3000/9010",{"$nulls":7},"680; ","DB 703/9010",{"$nulls":8},"665;",{"$f":"Translation!C168","v":"Eiche Golden/9010"}]
[{"$nulls":3},"676; 5010/9010",{"$nulls":7},"667; ","9016/9010",{"$nulls":8},"666;",{"$f":"Translation!C174","v":"Eiche Dunkel/9010"},{"$nulls":6},{"$f":"Translation!C207","v":"Sturzprofil"}]
[{"$nulls":3},"677; 6009/9010",{"$nulls":7},"668; ","7016/9010"]
[{"$nulls":3},"679; 8014/9010",{"$nulls":15},{"$f":"Translation!C34","v":"Lamelle Woodgrain"}]
[{"$nulls":3},"678; 7016/9010",{"$nulls":17},"664;","9016/9010",{"$nulls":8},{"$f":"Translation!C60&\" 9010\"","v":"RAL 9010"},{"$nulls":11},{"$f":"Translation!C62","v":"Farbton (Kode)"}]
[{"$nulls":31},{"$f":"Translation!C208","v":"Lackierung des Sturzprofils"}]
[null,{"$f":"Translation!C37","v":"V-Profil glatt "},{"$nulls":17},{"$f":"Translation!C40","v":"Ohne Sicke woodgrain"}]
[{"$nulls":3},"687; 9006/9010",{"$nulls":17},"669;","9016/9010",{"$nulls":6},{"$f":"Translation!C184","v":"Verkleidungsbleche"}]
[{"$nulls":3},"682; 7016/9010",{"$nulls":25},{"$f":"Translation!C185","v":"Senkrechte Schienen"},{"$nulls":10},{"$f":"Translation!C186","v":"Waagrechtes Profil"}]
[{"$nulls":31},{"$f":"Translation!C187","v":"\"J\" Profil"},{"$nulls":10},{"$f":"Translation!C189","v":"\"L\" Profil"}]
[null,{"$f":"Translation!C68","v":"Lackierung der Paneele"},{"$nulls":29},{"$f":"Translation!C188","v":"\"L\" Profile"}]
[{"$nulls":3},{"$f":"Translation!C60","v":"RAL"},{"$nulls":6},{"$f":"Translation!C61","v":"NCS"},{"$nulls":32},{"$f":"Translation!C62","v":"Farbton (Kode)"}]
[{"$nulls":15},{"$f":"Translation!C62","v":"Farbton (Kode)"},{"$nulls":15},{"$f":"Translation!C209","v":"Lackierung der Verkleidungsbleche"}]
[{"$nulls":3},{"$f":"Translation!C63","v":"Außenlackierung"}]
[{"$nulls":3},{"$f":"Translation!C64","v":"Innenlackierung"},{"$nulls":25},{"$f":"Translation!C212","v":"Thermisch getrennte Dichtung"}]
[{"$nulls":15},{"$f":"Translation!C62","v":"Farbton (Kode)"},{"$nulls":15},{"$f":"Translation!C59","v":"Ja"},{"$nulls":6},{"$f":"Translation!C75","v":"Fenster"}]
[{"$nulls":3},{"$f":"Translation!C69","v":"Lackierung der unteren Leiste"}]
[{"$nulls":40},1,{"$f":"AO50+1","v":2},{"$f":"AP50+1","v":3},4,5,{"$nulls":7},{"$f":"Translation!C74","v":"Stückzahl in einer Sektion"}]
[null,{"$f":"Translation!C129","v":"Bedienung"},{"$nulls":37},{"$f":"Translation!C73","v":"Sektion"}]
[{"$nulls":18},{"$f":"Translation!C196","v":"Befestigung der waagrechten Schienen"},{"$nulls":21},{"$f":"Translation!C117","v":"Typ der Fenster"}]
[{"$nulls":3},{"$f":"Translation!C130","v":"Handbed."},{"$nulls":14},"X",null,{"$f":"Translation!C202","v":"\"L\" Profile"}]
[{"$nulls":3},{"$f":"Translation!C132","v":"Antrieb"}]
[{"$nulls":3},{"$f":"Translation!C133","v":"Antrieb bauseits geliefert"},{"$nulls":34},{"$f":"Translation!C92","v":"Alu-Rahmen Sektion"}]
[{"$nulls":18},{"$f":"Translation!C95","v":"Verschließbarer Griff"},{"$nulls":21},1,{"$f":"AO56+1","v":2},{"$f":"AP56+1","v":3},4,5]
[null,{"$f":"Translation!C134","v":"Antrieb-Typ"},{"$nulls":37},{"$f":"Translation!C73","v":"Sektion"}]
[{"$nulls":3},"Black 600/800/1000",{"$nulls":36},{"$f":"Translation!C114","v":"Verglasungstyp"}]
[{"$nulls":3},"RUN 500",{"$nulls":16},{"$f":"Translation!C49","v":"Links"},{"$nulls":5},{"$f":"Translation!C50","v":"In der Mitte"},{"$nulls":6},{"$f":"Translation!C51","v":"Rechts"}]
[{"$nulls":3},"Black1200"]
[{"$nulls":18},{"$f":"Translation!C106","v":"Handgriffe"},{"$nulls":19},{"$f":"Translation!C70","v":"Lackierung der Alu-Sektion"}]
[null,{"$f":"Translation!C151","v":"Handsender"},{"$nulls":38},{"$f":"Translation!C60","v":"RAL"},{"$nulls":5},{"$f":"Translation!C61","v":"NCS"}]
[{"$nulls":3},{"$f":"Translation!C153","v":"3-Kanal"},{"$nulls":8},{"$f":"Translation!C11","v":"Stückzahl"},{"$nulls":35},{"$f":"Translation!C62","v":"Farbton (Kode)"}]
[{"$nulls":20},{"$f":"Translation!C49","v":"Links"},{"$nulls":5},{"$f":"Translation!C50","v":"In der Mitte"},{"$nulls":6},{"$f":"Translation!C51","v":"Rechts"},{"$nulls":6},{"$f":"Translation!C63","v":"Außenlackierung"}]
[{"$nulls":40},{"$f":"Translation!C64","v":"Innenlackierung"}]
[null,{"$f":"Translation!C176","v":"Schlüsselschalter, Tastaturen"},{"$nulls":16},{"$f":"Translation!C163","v":"Lüftungsgitter"}]
[{"$nulls":3},{"$f":"Translation!C177","v":"856; Kodentaster - DigiCode"},{"$nulls":34},{"$f":"Translation!C93","v":"Alu-Sektion mit isolierter Füllung"}]
[{"$nulls":3},{"$f":"Translation!C178","v":"860; Wand-Doppeltaster -  DuoControl"},{"$nulls":36},1,{"$f":"AO68+1","v":2},{"$f":"AP68+1","v":3},4,5]
[{"$nulls":3},{"$f":"Translation!C179","v":"855; Schlüsselschalter auf Putz"},{"$nulls":16},{"$f":"Translation!C49","v":"Links"},{"$nulls":12},{"$f":"Translation!C51","v":"Rechts"},{"$nulls":5},{"$f":"Translation!C73","v":"Sektion"}]
[{"$nulls":3},{"$f":"Translation!C180","v":"858; Schlüsselschalter unter Putz"},{"$nulls":36},{"$f":"Translation!C115","v":"Typ der isolierten Sektion"}]
[{"$nulls":20},{"$f":"Translation!C60","v":"RAL"},{"$nulls":3},{"$f":"Translation!C62","v":"Farbton (Kode)"}]
[null,{"$f":"Translation!C135","v":"Zubehör zum Antrieb"},{"$nulls":18},{"$f":"Translation!C61","v":"NCS"}]
[{"$nulls":3},{"$f":"Translation!C181","v":"Externer Empfänger"},{"$nulls":34},{"$f":"Translation!C71","v":"Lackierung der Füllung der Alu-Sektion"}]
[{"$nulls":3},{"$f":"Translation!C182","v":"Fotozelle"},{"$nulls":14},{"$f":"Translation!C162","v":"Bemerkungen"},{"$nulls":21},{"$f":"Translation!C60","v":"RAL"},{"$nulls":5},{"$f":"Translation!C61","v":"NCS"}]
[{"$nulls":48},{"$f":"Translation!C62","v":"Farbton (Kode)"}]
[null,{"$f":"Translation!C157","v":"Ampel"},{"$nulls":38},{"$f":"Translation!C63","v":"Außenlackierung"}]
[{"$nulls":3},{"$f":"Translation!C159","v":"Licht-rot"},{"$nulls":8},{"$f":"Translation!C11","v":"Stückzahl"},{"$nulls":27},{"$f":"Translation!C64","v":"Innenlackierung"}]
[{"$nulls":3},{"$f":"Translation!C160","v":"Licht-grün"}]
[{"$nulls":3},{"$f":"Translation!C161","v":"Licht-rot+grün"},{"$nulls":34},{"$f":"Translation!C94","v":"Streckgitter"}]
[{"$nulls":3},{"$f":"Translation!C158","v":"Steuerung für Ampelsteuerung A800"},{"$nulls":36},1,{"$f":"AO80+1","v":2},{"$f":"AP80+1","v":3},4,5]
[{"$nulls":39},{"$f":"Translation!C73","v":"Sektion"}]
[{"$nulls":40},{"$f":"Translation!C116","v":"Typ der Streckgitter"}]
[]
[]
[{"$nulls":40},{"$f":"Translation!C60","v":"RAL"},{"$nulls":7},{"$f":"Translation!C62","v":"Farbton (Kode)"}]
[{"$nulls":40},{"$f":"Translation!C61","v":"NCS"}]
[]
[{"$f":"\"TOORS CZ s.r.o., Turkova 1338, 504 01 Nový Bydžov, \"&Translation!C2&\", T: +420 495 491 855,  F: +420 498 606 714, e-mail: toors@toors.cz, www.toors.cz\"","v":"TOORS CZ s.r.o., Turkova 1338, 504 01 Nový Bydžov, Tschechische Republik, T: +420 495 491 855,  F: +420 498 606 714, e-mail: toors@toors.cz, www.toors.cz"},{"$nulls":52},"rev.: ",null,2023]

{"sheet":"Translation","index":1,"n_rows":306,"n_cols":59,"rows_kept":306,"hidden":true}
[null,null,{"$f":"IF(EXT!AU9=I1,1,IF(EXT!AU9=J1,2,IF(EXT!AU9=K1,3,IF(EXT!AU9=L1,4,IF(EXT!AU9=M1,5,IF(EXT!AU9=N1,6,\"Chyba\"))))))","v":3},{"$nulls":5},"CZ","EN","DE","PL","NL","FR"]
[null,null,{"$f":"VLOOKUP(I2,I:N,$C$1,FALSE)","v":"Tschechische Republik"},{"$nulls":5},"Česká republika","Czech Republic","Tschechische Republik","Republika Czeska","Tsjechische Republiek","République tchèque"]
[null,null,"Bestellformular",{"$nulls":5},"Objednávkový formulář","Order Form","Bestellformular","Formularz zamówienia","Bestelformulier","Formulaire de commande"]
[null,null,"Alles ist bestimmt bei INNENANSICHT",{"$nulls":5},"Vše specifikováno při pohledu zevnitř!","All views are interior views!","Alles ist bestimmt bei INNENANSICHT","Wszystko jest specyfikowane z widokiem od zewnątrz!","Alles gespecificeerd van binnenuit gezien!","Tout est specifié pour une vue de l’intérieur!"]
[null,null,"Industrietor",{"$nulls":5},"Průmyslová vrata","Industrial door","Industrietor","Brama przemysłowa","Industriële deur","Les Portes Industrielles"]
[null,null,"Garagentor",{"$nulls":5},"Garážová vrata","Garage door","Garagentor","Brama garażowa","Garagedeur","Porte de garage"]
[null,null,"Zweiflüglig Tor",{"$nulls":5},"Dvoukřídlá vrata","Double leaf door","Zweiflüglig Tor","Brama dwuskrzydłowa","Tweevleugelige deur","Portail à deux battants"]
[null,null,"Nebeneingangstür (ManDoor)",{"$nulls":5},"Boční vstupní dveře (ManDoor)","Side entrance door (ManDoor)","Nebeneingangstür (ManDoor)","Boczne drzwi wejściowe (ManDoor)","Deur voor zij-ingang","Porte d’entrée latérale (ManDoor)"]
[null,null,"Nebeneingangstür (ManDoor NG)",{"$nulls":5},"Boční vstupní dveře (ManDoor NG)","Side entrance door (ManDoor NG)","Nebeneingangstür (ManDoor NG)","Boczne drzwi wejściowe (ManDoor NG)","Deur voor zij-ingang NG","Porte d’entrée latérale (ManDoor NG)"]
[null,null,"Auftragsnummer",{"$nulls":5},"Číslo/název objednávky","Order No. or name","Auftragsnummer","Nr/nazwa zamówienia","Ordernummer/ordernaam","Numéro/dénomination de la commande"]
[null,null,"Stückzahl",{"$nulls":5},"Počet kusů","Quantity","Stückzahl","Ilość sztuk","Aantal stuks","Quantité"]
[null,null,"Lieferwoche",{"$nulls":5},"Dodací týden","Delivery week","Lieferwoche","Tydzień dostawy","Leveringsweek","Semaine de livraison"]
[null,null,"Leibung",{"$nulls":5},"Ostění","Side room","Leibung","Węgarek","Bekleding","Chambranle"]
[null,null,"Links",{"$nulls":5},"Levé","Left","Links","Lewy","Links","Gauche"]
[null,null,"Rechts",{"$nulls":5},"Pravé","Right","Rechts","Prawy","Rechts","Droit"]
[null,null,"Sturzhöhe",{"$nulls":5},"Výška překladu","Height of lintel","Sturzhöhe","Wysokość nadproża","Hoogte van de bovenste draagconstr.","Hauteur du linteau"]
[null,null,"Lichte Breite",{"$nulls":5},"Šířka otvoru (W)","Width of opening (W)","Lichte Breite","Szerokość otworu (W)","Breedte van de open. (B)","Largeur de l'ouverture (W)"]
[null,null,"Lichte Höhe",{"$nulls":5},"Výška otvoru (H)","Height of opening (H)","Lichte Höhe","Wysokość otworu (H)","Hoogte van de opening (H)","Hauteur de l'ouverture (H)"]
[null,null,"Umlenkung (Beschlagstyp)",{"$nulls":5},"Typ vedení","Lift type","Umlenkung (Beschlagstyp)","Rodzaj prowadzenia","Type geleiding","Type de guide"]
[null,null,"Standardbeschlag SL 350",{"$nulls":5},"Standardní vedení (min. 350 mm)","Standard lift (min. 350 mm)","Standardbeschlag SL 350","Prowad. standard. (min 350 mm)","Standaardgeleiding (min. 350 mm)","Guide standard (min. 350 mm)"]
[null,null,"Standardbeschlag SL 420",{"$nulls":5},"Standardní vedení (min. 420 mm)","Standard lift (min. 420 mm)","Standardbeschlag SL 420","Prowad. standard. (min 420 mm)","Standaardgeleiding (min. 420 mm)","Guide standard (min. 420 mm)"]
[null,null,"Hochführung",{"$nulls":5},"Zvýšené vedení","High lift","Hochführung","Prowad. podwyższone","Verhoogde geleiding","Guide surélevé"]
[null,null,"Hochführung - Federwelle unten",{"$nulls":5},"Zvýšené vedení, T-door","High lift, T-Door","Hochführung - Federwelle unten","Prowad. podwyższone, T-door","Verhoogde geleiding, T-deur","Guide surélevé, T-door"]
[null,null,"Vertikalbesch. - Senkrechtläufer",{"$nulls":5},"Vertikální vedení","Vertical lift","Vertikalbesch. - Senkrechtläufer","Prowad. pionowe","Verticale geleiding","Guide vertical"]
[null,null,"Vertikalbeschl. - Federwelle unt.",{"$nulls":5},"Vertikální vedení, T-Door","Vertical lift, T-Door","Vertikalbeschl. - Federwelle unt.","Prowad. pionowe, T-door","Verticale geleiding, T-deur","Guide vertical, T-Door"]
[null,null,"Niedrigsturz (min. 200 mm)",{"$nulls":5},"Snížené vedení (min. 200 mm)","Low lift (min. 200 mm)","Niedrigsturz (min. 200 mm)","Prowad. obniżone (min 200 mm)","Verlaagde geleiding (min. 200 mm)","Guide rabaissé (min. 200 mm)"]
[null,null,"Niedrigsturz (min. 230 mm)",{"$nulls":5},"Snížené vedení (min. 230 mm)","Low lift (min. 230 mm)","Niedrigsturz (min. 230 mm)","Prowad. obniżone (min 230 mm)","Verlaagde geleiding (min. 230 mm)","Guide rabaissé (min. 230 mm)"]
[null,null,"Dachfolgebeschlag",{"$nulls":5},"Vedení pod úhlem","Following the roof","Dachfolgebeschlag","Prowadzenie pod kątem","Geleiding onder een hoek","Guide oblique"]
[null,null,"Renovierungssystem",{"$nulls":5},"Renovační systém","Renovation system","Renovierungssystem","System renowacyjny","Renovatiesysteem","Système de rénovation"]
[null,null,"Niedrigsturz (min. 200 mm)",{"$nulls":5},"Snížené vedení (min. 200 mm)","Low lift (min. 200 mm)","Niedrigsturz (min. 200 mm)","LHF-C Low Lift","LHF-C Low Lift","LHF-C Low Lift"]
[null,null,"Niedrigsturz (min. 90 mm)",{"$nulls":5},"Snížené vedení (min. 90 mm)","Low lift (min. 90 mm)","Niedrigsturz (min. 90 mm)","Prowad. obniżone (min 90 mm)","Verlaagde geleiding (min. 90 mm)","Guide rabaissé (min. 90 mm)"]
[null,null,"Lamelle stucco",{"$nulls":5},"Lamela stucco","Lamella stucco","Lamelle stucco","Płytka stucco","Lamel stucwerk","Lamelle stucco"]
[null,null,"Lamelle glatt",{"$nulls":5},"Lamela hladká","Lamella smooth","Lamelle glatt","Płytka gładka","Lamel glad","Lamelle lisse"]
[null,null,"Lamelle Woodgrain",{"$nulls":5},"Lamela woodgrain","Lamella woodgrain","Lamelle Woodgrain","Płytka woodgrain","Lamel houtnerf","Lamelle woodgrain"]
[null,null,"Mittelsicke Woodgrain",{"$nulls":5},"Stř. drážka woodgrain","Central rib woodgrain","Mittelsicke Woodgrain","Przetłocz. centralne woodgr.","Centrale groef houtnerf","Rainure centrale woodgrain"]
[null,null,"Mittelsicke Glatt",{"$nulls":5},"Stř. drážka hladká","Central rib smooth","Mittelsicke Glatt","Przetłocz. centralne gładka","Centrale groef glad","Rainure centrale lisse"]
[null,null,"V-Profil glatt ",{"$nulls":5},"V-profil hladká","V-profile smooth","V-Profil glatt ","V-profil gładka","V-profiel glad","Profilé en V lisse"]
[null,null,"Ohne Sicke stucco",{"$nulls":5},"Bez drážky stucco","Flat stucco","Ohne Sicke stucco","Bez przetłoczenia stucco","Zonder groef stucwerk","Sans rainure stucco"]
[null,null,"Ohne Sicke glatt",{"$nulls":5},"Bez drážky hladká","Flat smooth","Ohne Sicke glatt","Bez przetłoczenia gładka","Zonder groef glad","Sans rainure lisse"]
[null,null,"Ohne Sicke woodgrain",{"$nulls":5},"Bez drážky woodgrain","Flat woodgrain","Ohne Sicke woodgrain","Bez przetłoczenia woodgrain","Zonder groef houtnerf","Sans rainure woodgrain"]
[null,null,"Kasette Woodgrain",{"$nulls":5},"Kazeta woodgrain","Cassette woodgrain","Kasette Woodgrain","Kaseton woodgrain","Cassette houtnerf","Cassette woodgrain"]
[null,null,"Anderes:",{"$nulls":5},"Jiný:","Other:","Anderes:","Inny:","Anders:","Autre :"]
[null,null,"Schlupftür",{"$nulls":5},"Vstupní dveře","Passdoor","Schlupftür","Drzwi wejściowe","Toegangsdeur","Porte d’entrée"]
[null,null,"Höhe der Schwelle",{"$nulls":5},"Výška prahu","Height of threshold","Höhe der Schwelle","Wysokość progu","Drempelhoogte","Hauteur du seuil"]
[null,null,"Standardschwelle (220mm)",{"$nulls":5},"Standardní práh (220 mm)","Standard threshold (220 mm)","Standardschwelle (220mm)","Standardowy próg (220 mm)","Standaarddrempel (220 mm)","Seuil standard (220 mm)"]
[null,null,"Extra niedrige Schwelle (25mm)",{"$nulls":5},"Extra nízký práh (25 mm)","Extra Low Threshold (25 mm)","Extra niedrige Schwelle (25mm)","Ekstra niski próg (25 mm)","Extra lage drempel (25 mm)","Seuil extra-bas (25 mm)"]
[null,null,"Schlupftürkontakt (Kabelausfürung)",{"$nulls":5},"Kontakt dveří","Passdoor contact","Schlupftürkontakt (Kabelausfürung)","Zestyki drzwi","Contact van de deur","Contact de la porte"]
[null,null,"Position der Schlupftür",{"$nulls":5},"Umístění dveří","Position of passdoor","Position der Schlupftür","Umieszczenie drzwi","Plaatsing van de deur","Emplacement de la porte"]
[null,null,"Links",{"$nulls":5},"Vlevo","Left","Links","W lewo","Links","À gauche"]
[null,null,"In der Mitte",{"$nulls":5},"Uprostřed","Middle","In der Mitte","Pośrodku","Midden","Au centre"]
[null,null,"Rechts",{"$nulls":5},"Vpravo","Right","Rechts","W prawo","Rechts","À droite"]
[null,null,"Links und rechts",{"$nulls":5},"Vlevo a vpravo","Left and Right","Links und rechts","W lewo i w prawo","Links en rechts","À gauche et à droite"]
[null,null,"Öffnungsrichtung",{"$nulls":5},"Směr otevírání","Direction of opening","Öffnungsrichtung","Kierunek otwierania","Openingsrichting","Sens d’ouverture"]
[null,null,"Scharniere innen links",{"$nulls":5},"panty na levé straně","hinges on left","Scharniere innen links","zawiasy po lewej stronie","Scharnieren aan de linkerzijde","charnières du côté gauche"]
[null,null,"DIN rechts",{"$nulls":5},"DIN pravé","DIN right","DIN rechts","DIN prawe","DIN rechts","DIN droit"]
[null,null,"Scharniere innen rechts",{"$nulls":5},"panty na pravé straně","hinges on right","Scharniere innen rechts","zawiasy po prawej stronie","Scharnieren aan de rechterzijde","charnières du côté droit"]
[null,null,"DIN links",{"$nulls":5},"DIN levé","DIN left","DIN links","DIN lewe","DIN links","DIN à gauche"]
[null,null,"Lackierung der Schlupftürprofile",{"$nulls":5},"Lakování profilů dveří","Painting of passdoor profiles","Lackierung der Schlupftürprofile","Lakierowanie profilów drzwi","Lakken van deurprofielen","Peinture des profilés de la porte"]
[null,null,"Ja",{"$nulls":5},"Ano","Yes","Ja","Tak","Ja","Oui"]
[null,null,"RAL",{"$nulls":5},"RAL","RAL","RAL","RAL","RAL","RAL"]
[null,null,"NCS",{"$nulls":5},"NCS","NCS","NCS","NCS","NCS","NCS"]
[null,null,"Farbton (Kode)",{"$nulls":5},"Odstín (kód)","Shade (code)","Farbton (Kode)","Odcień (kod)","Tint (code)","Teinte (code)"]
[null,null,"Außenlackierung",{"$nulls":5},"Externí lakování","External painting","Außenlackierung","Lakierowanie zewn.","Kleur buitenkant","Peinture extérieure"]
[null,null,"Innenlackierung",{"$nulls":5},"Interní lakování","Internal painting","Innenlackierung","Lakierowanie wewn.","Kleur binnenkant","Peinture intérieure"]
[null,null,"Außen",{"$nulls":5},"Venku","Out","Außen","Na zewnątrz","Buiten","Extér."]
[null,null,{"$f":"VLOOKUP(I66,I:N,$C$1,FALSE)","v":"Innen"},{"$nulls":5},"Uvnitř","In","Innen","Wewnątrz","Binnen","Intér."]
[null,null,"Typ der Klinke",{"$nulls":5},"Typ kliky a zámku","Type of handle and lock","Typ der Klinke","Rodzaj klamki i zamka","Type handvat en slot","Type de poignée et de serrure"]
[null,null,"Lackierung der Paneele",{"$nulls":5},"Lakování panelů","Painting of panels","Lackierung der Paneele","Lakierowanie paneli","Kleur van panelen","Peinture des panneaux"]
[null,null,"Lackierung der unteren Leiste",{"$nulls":5},"Lakování spodní a horní lišty","Painting of bottom and top profile","Lackierung der unteren Leiste","Lakierowanie listwy dolnej i górnej","Kleur van de onder- en bovenlat","Peinture des barres supérieure et infér."]
[null,null,"Lackierung der Alu-Sektion",{"$nulls":5},"Lakování Full Vision rámu","Painting of Full Visions' frame","Lackierung der Alu-Sektion","Lakierowanie ramy panoramicznej Full Vision","Kleur van Full Vision frame","Peinture du cadre Full Vision"]
[null,null,"Lackierung der Füllung der Alu-Sektion",{"$nulls":5},"Lakování výplní","Painting of fillings","Lackierung der Füllung der Alu-Sektion","Lakierowanie wypełnienia","Kleur van de voering","Peinture des panneaux de remplissage"]
[null,null,"Verglasung",{"$nulls":5},"Prosklení sekcí","Glazing of sections","Verglasung","Przeszklenie sekcji","Beglazing van secties","Vitrage des sections"]
[null,null,"Sektion",{"$nulls":5},"Sekce","Section","Sektion","Sekcje","Secties","Sections"]
[null,null,"Stückzahl in einer Sektion",{"$nulls":5},"Počet v jedné sekci","Quantity per 1 section","Stückzahl in einer Sektion","Ilość w jednej sekcji","Aantal in één sectie","Nombre par section"]
[null,null,"Fenster",{"$nulls":5},"Okna","Windows","Fenster","Okna","Vensters","Fenêtre"]
[null,null,"203; oval 1, CLICK",{"$nulls":5},"203; Oválné 1, CLICK","203; Oval 1, CLICK","203; oval 1, CLICK","203; Owalne 1, CLICK","203; Ovaal 1, CLICK","203 ; Ovale 1, CLICK"]
[null,null,"205; eckig 1, CLICK",{"$nulls":5},"205; Hranaté 1, CLICK","205; Rectangular 1, CLICK","205; eckig 1, CLICK","205; Prostokątne 1, CLICK","205; Hoekig 1, CLICK","205 ; Carré 1, CLICK"]
[null,null,"207; eckig 2",{"$nulls":5},"207; Hranaté 2","207; Rectangular 2","207; eckig 2","207; Prostokątne 2","207; Hoekig 2","207 ; Carré 2"]
[null,null,"216; eckig 9",{"$nulls":5},"216; Hranaté 9","216; Rectangular 9","216; eckig 9","216; Prostokątne 9","216; Hoekig 9","216 ; Carré 9"]
[null,null,"217; rund",{"$nulls":5},"217; Kulaté","217; Round","217; rund","217; Okrągłe","217; Rond","217 ; Rond"]
[null,null,"218; eckig, Edelstahl",{"$nulls":5},"218; Hranaté NEREZ","218; Rectangular stainless steel","218; eckig, Edelstahl","218; Prostokątne NIERDZ.","218; Hoekig 1 ROESTVRIJ","218 ; Carré INOX"]
[null,null,"215; rund, Edelstahl",{"$nulls":5},"215; Kulaté NEREZ","215; Round stainless steel","215; rund, Edelstahl","215; Okrągłe NIERDZ.","215; Rond ROESTVRIJ","215 ; Rond INOX"]
[null,null,"211; oval 1,  80  mm Paneel",{"$nulls":5},"211; Oválné 1,  80  mm panel","211; Oval 1,  80  mm pannel","211; oval 1,  80  mm Paneel","211; Okrągłe 1, 80 mm panel","211; Ovaal 1, 80 mm paneel","211 ; Ovale 1, panneau de 80 mm"]
[null,null,"212; eckig 1,  80 mm Paneel",{"$nulls":5},"212; Hranaté 1,  80 mm panel","212; Rectangular 1,  80 mm pannel","212; eckig 1,  80 mm Paneel","212; Prostokątne 1,  80 mm panel","212; Hoek 1, 80 mm paneel","212 ; Carré 1, panneau de 80 mm",{"$nulls":44},1649]
[null,null,"216; eckig 9, 80 mm Paneel",{"$nulls":5},"216; Hranaté 9, 80 mm panel","216; Rectangular 9, 80 mm pannel","216; eckig 9, 80 mm Paneel","216; Prostokątne 9, 80 mm panel","216; Hoek 9, 80 mm paneel","216 ; Carré 9, panneau de 80 mm"]
[null,null,"204; eckig 3",{"$nulls":5},"204; Hranaté 3","204; Rectangular 3","204; eckig 3","204; Prostokątne 3","204; Hoekig 3","204 ; Carré 3"]
[null,null,"206; eckig 4",{"$nulls":5},"206; Hranaté 4","206; Rectangular 4","206; eckig 4","206; Prostokątne 4","206; Hoekig 4","206 ; Carré 4"]
[null,null,"210; eckig 7",{"$nulls":5},"210; Hranaté 7","210; Rectangular 7","210; eckig 7","210; Prostokątne 7","210; Hoekig 7","210 ; Carré 7"]
[null,null,"208; eckig 5",{"$nulls":5},"208; Hranaté 5","208; Rectangular 5","208; eckig 5","208; Prostokątne 5","208; Hoekig 5","208 ; Carré 5"]
[null,null,"202; eckig 10",{"$nulls":5},"202; Hranaté 10","202; Rectangular 10","202; eckig 10","202; Prostokątne 10","202; Hoekig 10","202 ; Carré 10"]
[null,null,"219; eckig,  Edelstahl",{"$nulls":5},"219; Hranaté nerez","219; Rectangular stainless steel","219; eckig,  Edelstahl","219; Prostokątne nierdz.","219; Hoekig roestvrij","219 ; Carré inox"]
[null,null,"Alu-Rahmen Sektion",{"$nulls":5},"Full Vision sekce","Full Visions sections","Alu-Rahmen Sektion","Full Vision sekcje panoramiczne","Full Vision-sectie","Section Full Vision"]
[null,null,"Alu-Sektion mit isolierter Füllung",{"$nulls":5},"Zateplené sekce","Insulated sections","Alu-Sektion mit isolierter Füllung","Ocieplone sekcje","Geïsoleerde sectie","Section isolée"]
[null,null,"Streckgitter",{"$nulls":5},"Sekce s tahokovem","Expanded mesh sections","Streckgitter","Sekcje z siatką aluminiową","Sectie met strekmetaal","Séction avec métal déployé"]
[null,null,"Verschließbarer Griff",{"$nulls":5},"Závory, uzamykatelné závory","Slide bolts, cylinder locks","Verschließbarer Griff","Rygle, zamki","Grendels, afsluitbare grendels","Barrières, barrière verrouillables"]
[null,null,"490; Schubriegel",{"$nulls":5},"490; Závora","490; Slide bolt","490; Schubriegel","490; Rygiel","490; Grendel","490 ; Barrière"]
[null,null,"491; Schubriegel",{"$nulls":5},"491; Závora","491; Slide bolt","491; Schubriegel","491; Rygiel","491; Grendel","491 ; Barrière"]
[null,null,"492B; verschließbarer Griff",{"$nulls":5},"492B; Uzamykatelná závora","492B; Cylinder lock","492B; verschließbarer Griff","492B; Zamek","492B; Afsluitbare grendel","492B ; Barrière verrouillable"]
[null,null,"493B verschließbarer Griff",{"$nulls":5},"493B Uzamykatelná závora","493B; Cylinder lock","493B verschließbarer Griff","493B; Zamek","493B; Afsluitbare grendel","493B Barrière verrouillable"]
[null,null,"495; verschließbarer Griff",{"$nulls":5},"495; Uzamykatelná závora","495; Cylinder lock","495; verschließbarer Griff","495; Zamek","492; Afsluitbare grendel","495 ; Barrière verrouillable"]
[null,null,"497A; verschließbarer Griff",{"$nulls":5},"497A; Uzamykatelná závora","497A; Cylinder lock","497A; verschließbarer Griff","497A; Zamek","497A; Afsluitbare grendel","497A ; Barrière verrouillable"]
[null,null,"497B; verschließbarer Griff",{"$nulls":5},"497B; Uzamykatelná závora","497B; Cylinder lock","497B; verschließbarer Griff","497B; Zamek","497B; Afsluitbare grendel","497B ; Barrière verrouillable"]
[null,null,"498; verschließbarer Griff",{"$nulls":5},"498; Uzamykatelná závora","498; Cylinder lock","498; verschließbarer Griff","498; Zamek","492; Afsluitbare grendel","498 ; Barrière verrouillable"]
[null,null,"499B; verschließbarer Griff",{"$nulls":5},"499B; Uzamykatelná závora","499B; Cylinder lock","499B; verschließbarer Griff","499B; Zamek","499B; Afsluitbare grendel","499B ; Barrière verrouillable"]
[null,null,"499S; verschließbarer Griff",{"$nulls":5},"499S; Uzamykatelná závora","499S; Cylinder lock","499S; verschließbarer Griff","499S; Zamek","499S; Afsluitbare grendel","499S ; Barrière verrouillable"]
[null,null,"Handgriffe",{"$nulls":5},"Madla","Handles (grips)","Handgriffe","Uchwyty","Handgrepen","Poignées"]
[null,null,"466; Handgriff - einseitig",{"$nulls":5},"466; Jednostranné madlo","466; Handgrip single - sided","466; Handgriff - einseitig","466; Uchwyt jednostronny","466; Eenzijdige handgreep","466 ; Poignée unilatérale"]
[null,null,"460; Handgriff - beiderseits",{"$nulls":5},"460; Oboustranné madlo","460; Handgrip double-sided","460; Handgriff - beiderseits","460; Uchwyt dwustronny","460; Tweezijdige handgreep","460 ; Poignée bilatérale"]
[null,null,"463; Handgriff - beiderseits",{"$nulls":5},"463; Oboustranné madlo","463; Handgrip double-sided","463; Handgriff - beiderseits","463; Uchwyt dwustronny","463; Tweezijdige handgreep","463 ; poignée bilatérale"]
[null,null,"467; Handgriff - beiderseits",{"$nulls":5},"467; Oboustranné madlo","467; Handgrip double-sided","467; Handgriff - beiderseits","467; Uchwyt dwustronny","467; Tweezijdige handgreep","467 ; Poignée bilatérale"]
[null,null,"468; Handgriff - beiderseits",{"$nulls":5},"468; Oboustranné madlo","468; Handgrip double-sided","468; Handgriff - beiderseits","468; Uchwyt dwustronny","468; Tweezijdige handgreep","468 ; Poignée bilatérale"]
[null,null,"469; Handgriff - beiderseits",{"$nulls":5},"469; Oboustranné madlo","469; Handgrip double-sided","469; Handgriff - beiderseits","469; Uchwyt dwustronny","469; Tweezijdige handgreep","469 ; Poignée bilatérale"]
[null,null,"469S; Handgriff - beiderseits",{"$nulls":5},"469S; Oboustranné madlo","469S; Handgrip double-sided","469S; Handgriff - beiderseits","469S; Uchwyt dwustronny","469S; Tweezijdige handgreep","469S ; Poignée bilatérale"]
[null,null,"Verglasungstyp",{"$nulls":5},"Typ prosklení","Type of glazing","Verglasungstyp","Rodzaj przeszklenia","Type beglazing","Type de vitrage"]
[null,null,"Typ der isolierten Sektion",{"$nulls":5},"Typ zateplené sekce","Type of insulated section","Typ der isolierten Sektion","Rodzaj ocieplonej sekcji","Type geïsoleerde sectie","Type de section isolée"]
[null,null,"Typ der Streckgitter",{"$nulls":5},"Typ tahokovu","Type of expanded mesh","Typ der Streckgitter","Rodzaj siatki aluminiowej","Type strekmetaal","Type de maillage"]
[null,null,"Typ der Fenster",{"$nulls":5},"Typ okna","Type of window","Typ der Fenster","Rodzaj okna","Type venster","Type de fenêtre"]
[null,null,"250; Doppelverglasung SAN UV",{"$nulls":5},"250; Dvoustěnné prosklení SAN UV","250; Double wall glazing SAN UV","250; Doppelverglasung SAN UV","250; Podwójne przeszklenie SAN UV","250; Dubbelwandige beglazing SAN UV","250 ; Double vitrage SAN UV"]
[null,null,"220; Einfachverglasung SAN UV",{"$nulls":5},"220; Jednostěnné prosklení SAN UV","220; Single wall glazing SAN UV","220; Einfachverglasung SAN UV","220; Pojedyncze przeszklenie SAN UV","220; Enkelwandige beglazing SAN UV","220 ; Simple vitrage SAN UV"]
[null,null,"260; Doppelverglasung Polycarbonat",{"$nulls":5},"260; Dvoustěnné prosklení polykarbonát","260; Double wall glazing polycarbonate","260; Doppelverglasung Polycarbonat","260;Podwójne przeszklenie poliwęglan","260; Dubbelwandige polycarbonaatbeglazing","260 ; Double vitrage en polycarbonate"]
[null,null,"230; Einfachverglasung Polycarbonat",{"$nulls":5},"230; Jednostěnné prosklení polykarbonát","230; Single wall glazing polycarbonate","230; Einfachverglasung Polycarbonat","230; Pojedyncze przeszklenie poliwęglan","230; Enkelwandige polycarbonaatbeglazing","230 ; Simple vitrage en polycarbonate"]
[null,null,"250.10; Einfachverglasung SAN UV, 1x kratzfest",{"$nulls":5},"250.10; Dvoustěnné prosklení SAN UV, 1x ANTI SCRATCH","250.10; Double wall glazing SAN UV, 1x ANTI SCRATCH","250.10; Einfachverglasung SAN UV, 1x kratzfest","250.10; Podwójne przeszklenie SAN UV, 1x ANTI SCRATCH","250.10; Dubbelwandige beglazing SAN UV, 1x ANTI SCRATCH","250.10 ; Double vitrage SAN UV, 1x ANTI SCRATCH"]
[null,null,"250.20; Doppelverglasung SAN UV, 2x kratzfest",{"$nulls":5},"250.20; Dvoustěnné prosklení SAN UV, 2x ANTI SCRATCH","250.20; Double wall glazing SAN UV, 2x ANTI SCRATCH","250.20; Doppelverglasung SAN UV, 2x kratzfest","251.20; Podwójne przeszklenie SAN UV, 2x ANTI SCRATCH","250.10; Dubbelwandige beglazing SAN UV, 2x ANTI SCRATCH","250.20 ; Double vitrage SAN UV, 2x ANTI SCRATCH"]
[null,null,"250.Co; farbige Doppelverglasung SAN UV ",{"$nulls":5},"250.Co; Dvoustěnné prosklení SAN UV; barevné","250.Co; Double wall glazing SAN UV with coloured panes","250.Co; farbige Doppelverglasung SAN UV ","252.Co; Podwójne przeszklenie SAN UV, kolorowe","250.Co; Dubbelwandige beglazing SAN UV; kleurig","250.Co ; Double vitrage SAN UV ; coloré"]
[null,null,"270; Isolierte Alu-Stucco Füllung",{"$nulls":5},"270; Zateplené hliníkové výplně stucco","270; Insulated aluminium stucco fillings","270; Isolierte Alu-Stucco Füllung","270;Ocieplone wypełnienie aluminiowe stucco","270; Geïsoleerde aluminium voering stucwerk","270 ; Panneaux en aluminium isolé stucco"]
[null,null,"270.20; Isolierte Alu-Glatte Füllung",{"$nulls":5},"270.20; Zateplené hliníkové výplně hladké","270.20; Insulated aluminium flat fillings","270.20; Isolierte Alu-Glatte Füllung","270.20; Ocieplone wypełnienie aluminiowe gładkie","270; Geïsoleerde aluminium voering glad","270.20 ; Panneaux en aluminium isolé hladké"]
[null,null,"280; Streckgitter 16/8",{"$nulls":5},"280; Tahokov, oko 16/8","280; Expanded mesh, eye size 16/8","280; Streckgitter 16/8","280; Siatka aluminiowa, oko 16/8","280; Strekmetaal, oog 16/8","280 ; Tôle de choc, œillet 16/8"]
[null,null,"280; Streckgitter 22/12",{"$nulls":5},"280; Tahokov, oko 22/12","280; Expanded mesh, eye size 22/12","280; Streckgitter 22/12","280; Siatka aluminiowa, oko 16/9","280; Strekmetaal, oog 22/12","280 ; Tôle de choc, œillet 22/12"]
[null,null,"Bedienung",{"$nulls":5},"Ovládání","Control","Bedienung","Sterowanie","Bediening","Commande"]
[null,null,{"$f":"VLOOKUP(I130,I:N,$C$1,FALSE)","v":"Handbed."},{"$nulls":5},"Manuální","Manual","Handbed.","Ręczne","Handmatig","Manuelle"]
[null,null,"Haspelkette 1:4",{"$nulls":5},"Řetězový převod 1:4","Chain hoist 1:4","Haspelkette 1:4","Przekładnia łańcuchowa 1:4","Kettingtransmissie 1: 4","Transmission à chaîne 1:4"]
[null,null,"Antrieb",{"$nulls":5},"Motor","Motor","Antrieb","Silnik","Motor","Moteur"]
[null,null,"Antrieb bauseits geliefert",{"$nulls":5},"Motor dodává zákazník","Motor supplied by customer","Antrieb bauseits geliefert","Silnik dostarcza klient","De klant levert de motor","Le moteur est fourni par le client"]
[null,null,"Antrieb-Typ",{"$nulls":5},"Typ motoru","Type of motor","Antrieb-Typ","Rodzaj silnika","Motortype","Type de moteur"]
[null,null,"Zubehör zum Antrieb",{"$nulls":5},"Příslušenství motoru","Accessories for motor","Zubehör zum Antrieb","Akcesoria do silnika","Motoraccessoires","Accessoires du moteur"]
[null,null,"Steuerung",{"$nulls":5},"Režim ovládání","Operation","Steuerung","Tryb sterowania","Bedieningsmodus","Mode de commande"]
[null,null,"TOTMAN",{"$nulls":5},"Totman","Dead man","TOTMAN","Totman","Totman","Totman"]
[null,null,"IMPULS",{"$nulls":5},"Impulsní řízení","Impuls","IMPULS","Impuls","impulsbesturing","Gestion par impulsions"]
[null,null,"FUNK",{"$nulls":5},"Dálkové ovládání","Remote control","FUNK","Zdalne sterowanie","Afstandsbediening","Commande à distance"]
[null,null,"Bodenkonsole",{"$nulls":5},"Spodní kování","Bottom bracket","Bodenkonsole","Okucia dolne","Onderste beslag","Ferrures inférieures"]
[null,null,"Alu-Bodenkonsole",{"$nulls":5},"Hliníkové","Aluminium","Alu-Bodenkonsole","Aluminiowe","Aluminium","En aluminium"]
[null,null,"Stahl-Konsole, LHR-C bis 160kg",{"$nulls":5},"Ocelové, LHR-C, max. 160 kg","Galv. steel, LHR-C, max. 160 kg","Stahl-Konsole, LHR-C bis 160kg","Stal., LHR-C, max 160 kg","Staal, LHR-C, max. 160 kg","En acier, LHR-C, max. 160 kg"]
[null,null,"Seilbruchsicherung",{"$nulls":5},"Pojistka při prasknutí lanka","Cable break security device","Seilbruchsicherung","Bezpiecznik przy pęknięciu linki","Zekering tegen kabelbreuk","Parachutes câble"]
[null,null,"Versteifungen",{"$nulls":5},"Výztuhy","Reinforcing struts","Versteifungen","Wzmocnienia","Versterkingen","Renforts"]
[null,null,"Federbruchsicherung",{"$nulls":5},"Pojistka při prasknutí pružiny","Spring break device","Federbruchsicherung","Bezpiecznik przy pęknięciu sprężyny","Zekering tegen veerbreuk","Parachute ressort"]
[null,null,"Steuerung IP54",{"$nulls":5},"Řídící jednotka IP 54","Control  box IP 54","Steuerung IP54","Jedn. sterująca IP 54","Besturingseenh. IP 54","Unité de comm. IP 54"]
[null,null,"Steuerung IP65",{"$nulls":5},"Řídící jednotka IP 65","Control  box IP 65","Steuerung IP65","Jedn. sterująca IP 65","Besturingseenh. IP 65","Unité de comm. IP 65"]
[null,null,"Frequenzumrichter",{"$nulls":5},"Frekvenční měnič","Frequency converter","Frequenzumrichter","Przemiennik częstotliwości","Frequentie-omvormer","Convertisseur de fréquence"]
[null,null,"Spiralkabel",{"$nulls":5},"Spirál kabel","Helix (spiral) cable","Spiralkabel","Kabel spiralny","Spiraalkabel","Spirale câble"]
[null,null,"WDS-Modul",{"$nulls":5},"Bezdrátový přenos (WSD)","Wireless transmition (WSD)","WDS-Modul","Transmisja bezprzewodowa (WSD)","Draadloze transmissie (WSD)","Transfert sans fil (WSD)"]
[null,null,"Handsender",{"$nulls":5},"Dálkové ovladače","Remote controls","Handsender","Piloty","Afstandsbediening","Boutons de commande à distance"]
[null,null,"2-Kanal",{"$nulls":5},"2kanálové","2-channels","2-Kanal","2-kanałowe","2 kanaals","à 2 canaux"]
[null,null,"3-Kanal",{"$nulls":5},"3kanálové","3-channels","3-Kanal","3-kanałowe","3 kanaals","à 3 canaux"]
[null,null,"4-Kanal",{"$nulls":5},"4kanálové","4-channels","4-Kanal","4-kanałowe","4 kanaals","à 4 canaux"]
[null,null,"Externe Fotozelle",{"$nulls":5},"Externí reflexní fotobuňka","External reflex photocell","Externe Fotozelle","Fotokomórka zewn. reflex","Externe reflecterende fotocel","Cellules photo réfléchissante extérieure"]
[null,null,"Extrerner drei-fach-Taster",{"$nulls":5},"Externí trojtlačítko","External tripple button switch box","Extrerner drei-fach-Taster","Trójprzycisk zewn.","externe driedubbele knop","Triple bouton extérieur"]
[null,null,"Ampel",{"$nulls":5},"Semafor","Traffic light","Ampel","Światła sygnalizacyjne","Seinpaal","Phare"]
[null,null,"Steuerung für Ampelsteuerung A800",{"$nulls":5},"Řídící jednotka semaforu A800","Control unit for traffic lights A800","Steuerung für Ampelsteuerung A800","Jednostka sterująca świateł sygn. A800","Besturingseenheid seinpaal A800","Unité de commande du phare A800"]
[null,null,"Licht-rot",{"$nulls":5},"Červené světlo","Red light","Licht-rot","Czerwone światło","Rood licht","Lampe rouge"]
[null,null,"Licht-grün",{"$nulls":5},"Zelené světlo","Green light","Licht-grün","Zielone światło","Groen licht","Lampe verte"]
[null,null,"Licht-rot+grün",{"$nulls":5},"Červené + zelené světlo","Red + green light","Licht-rot+grün","Czerwone + zielone światło","Rood + groen licht","Lampe rouge + verte"]
[null,null,"Bemerkungen",{"$nulls":5},"Prostor pro Vaše poznámky","Your notes","Bemerkungen","Twoje notatki","Ruimte voor uw notities","Espace réservé à vos commentaires"]
[null,null,"Lüftungsgitter",{"$nulls":5},"Větrací mřížky","Air grates","Lüftungsgitter","Kratki wentylacyjne","Ventilatieroosters","Grilles de ventilation"]
[null,null,"Scharz/weiß",{"$nulls":5},"Černá/bílá","Black/white","Scharz/weiß","Czarna/biała","Zwart/wit","Noir/blanc"]
[null,null,"Weiß/weiß",{"$nulls":5},"Bílá/bílá","White/white","Weiß/weiß","Biała/biała","Wit/wit","Blanc/blanc"]
[null,null,"Nuss/9010",{"$nulls":5},"Ořech/9010","Nut/9010","Nuss/9010","Orzech/9010","Notenhout/9010","Noyer/9010"]
[null,null,"Nuss/9016",{"$nulls":5},"Ořech/9016","Nut/9016","Nuss/9016","Orzech/9016","Notenhout/9016","Noyer/9016"]
[null,null,"Eiche Golden/9010",{"$nulls":5},"Zlatý dub/9010","Golden oak/9010","Eiche Golden/9010","Złoty dąb/9010","Gouden eik/9010","Chêne doré/9010"]
[null,null,"Eiche Golden/9016",{"$nulls":5},"Zlatý dub/9016","Golden oak/9016","Eiche Golden/9016","Złoty dąb/9016","Gouden eik/9016","Chêne doré/9016"]
[null,null,"9010/9010",{"$nulls":5},"9010/9010","9010/9010","9010/9010","9010/9010","9010/9010","9010/9010"]
[null,null,"Mahagony/9010",{"$nulls":5},"Mahagon/9010","Mahagony/9010","Mahagony/9010","Mahoń/9010","Mahonie/9010","Acajou/9010"]
[null,null,"Mahagony/9016",{"$nulls":5},"Mahagon/9016","Mahagony/9016","Mahagony/9016","Mahoń/9016","Mahonie/9016","Acajou/9016"]
[null,null,"9016/9010",{"$nulls":5},"9016/9010","9016/9010","9016/9010","9016/9010","9016/9010","9016/9010"]
[null,null,"Eiche Dunkel/9010",{"$nulls":5},"Tmavý dub/9010","Dark oak/9010","Eiche Dunkel/9010","Ciemny dąb/9010","Donkere eik/9010","Chêne foncé/9010"]
[null,null,"Eiche Dunkel/9016",{"$nulls":5},"Tmavý dub/9016","Dark oak/9016","Eiche Dunkel/9016","Ciemny dąb/9016","Donkere eik/9016","Chêne foncé/9016"]
[null,null,"Schlüsselschalter, Tastaturen",{"$nulls":5},"Klíčové spínače, klávesnice","Key contacts and keyboards","Schlüsselschalter, Tastaturen","Przełączniki kluczykowe, klawiatury","Sleutelschakelaars, toetsenborden","Commutateurs à clé, clavier"]
[null,null,"856; Kodentaster - DigiCode",{"$nulls":5},"856; Kódová klávesnice DigiCode","856; Code keyboard DigiCode","856; Kodentaster - DigiCode","856; Klawiatura kodowa DigiCode","856; Codepaneel Digicode","856 ; Clavier à code DigiCode"]
[null,null,"860; Wand-Doppeltaster -  DuoControl",{"$nulls":5},"860; Dvoutlačítko DuoControl","860; Wall remote control DuoControl","860; Wand-Doppeltaster -  DuoControl","860; Dwuprzycisk DuoControl","860; Dubbel knop DuoControl","860 ; Double bouton DuoControl"]
[null,null,"855; Schlüsselschalter auf Putz",{"$nulls":5},"855; Klíčový spínač na omítku","855; Key contact surface mounting","855; Schlüsselschalter auf Putz","855; Przełącznik kluczykowy na tynk","855; Sleutelschakelaar op de bepleistering","855 ; Commutateur à clé en surface"]
[null,null,"858; Schlüsselschalter unter Putz",{"$nulls":5},"858; Klíčový spínač pod omítku","858; Key contact concealed mounting","858; Schlüsselschalter unter Putz","858; Przełącznik kluczykowy pod tynk","858; Sleutelschakelaar onder de bepleistering","858 ; Commutateurs à clé encastré"]
[null,null,"Externer Empfänger",{"$nulls":5},"Externí přijímač","External receiver","Externer Empfänger","Odbiornik zewn.","Externe ontvanger","Récepteur extérieur"]
[null,null,"Fotozelle",{"$nulls":5},"Fotobuňka","Light barrier","Fotozelle","Fotokomórka","Fotocel","Cellule photo"]
[null,null,"Allgemeine Höhe",{"$nulls":5},"Obecná výška [mm]","General height [mm]","Allgemeine Höhe","Wysokość ogólna [mm]","Algemene hoogte [mm]","Hauteur générale [mm]"]
[null,null,"Verkleidungsbleche",{"$nulls":5},"Krycí plechy","Covers for track","Verkleidungsbleche","Osłona prowadzenia","Dekplaten","Tôles de protection"]
[null,null,"Senkrechte Schienen",{"$nulls":5},"Svislé vedení","Vertical track","Senkrechte Schienen","Pionowe prowadzenie","Verticale geleiding","Guide vertical"]
[null,null,"Waagrechtes Profil",{"$nulls":5},"Vodorovný profil","Horizontal cover","Waagrechtes Profil","Profil poziomy","Horizontaal profiel","Profilé horizontal"]
[null,null,"\"J\" Profil",{"$nulls":5},"\"J\" plechy","\"J\" covers","\"J\" Profil","\"J\" osłony","J-platen","Tôles en « J »"]
[null,null,"\"L\" Profile",{"$nulls":5},"\"L\" plechy","\"L\" covers","\"L\" Profile","\"L\" osłony","L-platen","Tôles en « L »"]
[null,null,"\"L\" Profil",{"$nulls":5},"\"L\" plech","\"L\" cover","\"L\" Profil","\"L\" osłona","L-plaat","Tôle en « L »"]
[null,null,"Zweites Sturzprofil",{"$nulls":5},"Druhý překladový profil","2nd lintel profile","Zweites Sturzprofil","Drugi profil nadproża","Tweede draagbalkprofiel","Second profilé de linteau"]
[null,null,"Externe Entriegelung",{"$nulls":5},"Externí odblokování","External release","Externe Entriegelung","Odryglowanie zewn.","Externe deblokkering","Déblocage extérieur"]
[null,null,"Mit Profilzylinder und einer Kappe",{"$nulls":5},"s cylindrickým zámkem a krytkou","Key cylinder and cover","Mit Profilzylinder und einer Kappe","Z zamkiem cylindr. I osłoną","met cilinderslot en afdekking","avec verrou cylindrique et capuchon"]
[null,null,"Mit Rundzylinder",{"$nulls":5},"s kulatým zámkem","Round key cylinder","Mit Rundzylinder","Z okrągłym zamkiem cylindr.","met rond slot","avec verrou rond"]
[null,null,{"$f":"VLOOKUP(I194,I:N,$C$1,FALSE)","v":"Vormontierte Welle"},{"$nulls":5},"Předmontovaná hřídel","Preassembled shaft","Vormontierte Welle","Montaż wstępny wału","Pre-assemblage van de as","Arbre préassemblé"]
[null,null,", bis 4000x4000mm",{"$nulls":5},", do 4000x4000mm",", up to 4000x4000",", bis 4000x4000mm",", do 4000x4000mm",", tot 4000x4000mm",", jusqu'à 4000x4000mm"]
[null,null,"Befestigung der waagrechten Schienen",{"$nulls":5},"Zavěšení vedení","Hanging profiles","Befestigung der waagrechten Schienen","Profile wiszące","Geperforeerde hoeklijn","Cornière de soutien"]
[null,null,"30x30, Anhängewinkel mit Rund-Löchern",{"$nulls":5},"30x30, Děrov. úhelník, kulaté otv.","30x30, Perfer. angle, round holes","30x30, Anhängewinkel mit Rund-Löchern","30x30, Kątownik perf., okrągłe otw.","30x30, Geperforeerde winkelhaak, ronde openingen","30x30, Équerre percée, orifices ronds"]
[null,null,"30x30, Anhängewinkel mit Oval-Löchern",{"$nulls":5},"30x30, Děrov. úhelník, oválné otv.","30x30, Perfer. angle, oval holes","30x30, Anhängewinkel mit Oval-Löchern","30x30, Kątownik perf., owalne otw.","30x30, Geperforeerde winkelhaak, ronde openingen","30x30, Équerre percée, orifices ovales"]
[null,null,"50x50, Anhängewinkel mit Rund-Löchern",{"$nulls":5},"50x50, Děrov. úhelník, kulaté otv.","50x50, Perfer. angle, round holes","50x50, Anhängewinkel mit Rund-Löchern","50x50, Kątownik perf., okrągłe otw.","50x50, Geperforeerde winkelhaak, ronde openingen","50x50, Équerre percée, orifices ronds"]
[null,null,"50x50, Anhängewinkel mit Oval-Löchern",{"$nulls":5},"50x50, Děrov. úhelník, oválné otv.","50x50, Perfer. angle, oval holes","50x50, Anhängewinkel mit Oval-Löchern","50x50, Kątownik perf., owalne otw.","50x50, Geperforeerde winkelhaak, ronde openingen","50x50, Équerre percée, orifices ovales"]
[null,null,"\"L\" Profile (nur für LHF-C, LHR-C)",{"$nulls":5},"\"L\" profil (pouze LHF-C, LHR-C)","\"L\" profile (LHF-C, LHR-C only)","\"L\" Profile (nur für LHF-C, LHR-C)","„L” profil (tylko LHF-C, LHR-C)","L-profiel (alleen LHF-C, LHR-C)","Profilé en « L » (uniquement pour LHF-C, LHR-C)"]
[null,null,"\"L\" Profile",{"$nulls":5},"\"L\" profily","\"L\" profiles","\"L\" Profile","„L” profile","L-profielen","Profilés en « L »"]
[null,null,"Allgemeine",{"$nulls":5},"Obecná","General","Allgemeine","Ogólna ","Algemeen","Hauteur "]
[null,null,"Höhe [mm]",{"$nulls":5},"výška [mm]","height [mm]","Höhe [mm]","Wysokość [mm]","Hoogte [mm]","générale [mm]"]
[null,null,"Höhe zur unteren Kante des Sturzprofiles [mm]",{"$nulls":5},"Výška ke spodní hraně překladového profilu [mm]","Height to bottom edge of lintel profile [mm]","Höhe zur unteren Kante des Sturzprofiles [mm]","Wysokość do dolnej krawędzi profilu nadproża [mm]","Hoogte van de onderrand van het draagbalkprofiel [mm]","Hauteur jusqu’au bord inférieur du linteau [mm]"]
[null,null,"Deckenhöhe [mm]",{"$nulls":5},"Výška stropu [mm]","Height of ceiling [mm]","Deckenhöhe [mm]","Wysokość stropu [mm]","Hoogte van het plafond [mm]","Hauteur du plafond [mm]"]
[null,null,"Sturzprofil",{"$nulls":5},"Překladový profil","Lintel profile","Sturzprofil","Profil nadproża","Draagbalkprofiel","Profil de linteau"]
[null,null,"Lackierung des Sturzprofils",{"$nulls":5},"Lakování překladového profilu","Painting of lintel profile","Lackierung des Sturzprofils","Lakierowanie profilu nadproża","Lakken van Draagbalkprofiel","Peinture du profil de linteau"]
[null,null,"Lackierung der Verkleidungsbleche",{"$nulls":5},"Lakování krycích plechů","Painting of tracks' covers","Lackierung der Verkleidungsbleche","Lakierowanie osłon","Lakken van dekplatten","Peinture des tôles de protection"]
[null,null,"Standardsituation",{"$nulls":5},"Standardní situace","Standard situation","Standardsituation","Sytuacja standardowa","Standaard situatie","Situation standard"]
[null,null,"Ungewöhnliche Situation",{"$nulls":5},"Nestandardní situace","Non-standard situation","Ungewöhnliche Situation","Sytuacja niestandardowa","Atypische situatie","Situation non standard"]
[null,null,"Thermisch getrennte Dichtung",{"$nulls":5},"Těsnění s přerušeným tepelným mostem","Termal break sealing","Thermisch getrennte Dichtung","Uszczelnienie z mostkiem cieplnym","Thermische onderbreking afdichting","Joint de rupture thermique"]
[null,null,"Bestellung aufgrund der Öffnungsmaße",{"$nulls":5},"Objednávka na základě rozměrů OTVORU","Order based on OPENING dimensions","Bestellung aufgrund der Öffnungsmaße","Zamówienie na podstawie wymiarów OTWORU","Bestelling op basis van de maten van de OPENING","Commande sur la base des dimensions de l’ORIFICE"]
[null,null,"Bestellung  aufgrund der Rahmenaußenmaße",{"$nulls":5},"Objednávka na základě vnějšího rozměru RÁMU","Order based on outer FRAME dimensions","Bestellung  aufgrund der Rahmenaußenmaße","Zamówienie na podstawie zewnętrznych wymiarów RAMY","Bestelling op basis van de maten van het FRAME","Commande sur la base des dimensions du CADRE"]
[null,null,"Rahmenbreite",{"$nulls":5},"Šířka rámu","Width of frame","Rahmenbreite","Szerokość ramy","Framebreedte","Largeur du cadre"]
[null,null,"Rahmenhöhe",{"$nulls":5},"Výška rámu","Height of frame","Rahmenhöhe","Wysokość ramy","Framehoogte","Hauteur du cadre"]
[null,null,"2LD 01",{"$nulls":5},"2LD 01","2LD 01","2LD 01","2LD 01","2LD 01","2LD 01"]
[null,null,"2LD 02",{"$nulls":5},"2LD 02","2LD 02","2LD 02","2LD 02","2LD 02","2LD 02"]
[null,null,"2LD 03",{"$nulls":5},"2LD 03","2LD 03","2LD 03","2LD 03","2LD 03","2LD 03"]
[null,null,"2LD 04",{"$nulls":5},"2LD 04","2LD 04","2LD 04","2LD 04","2LD 04","2LD 04"]
[null,null,"2LD 05",{"$nulls":5},"2LD 05","2LD 05","2LD 05","2LD 05","2LD 05","2LD 05"]
[null,null,"2LD 06",{"$nulls":5},"2LD 06","2LD 06","2LD 06","2LD 06","2LD 06","2LD 06"]
[null,null,"2LD 07",{"$nulls":5},"2LD 07","2LD 07","2LD 07","2LD 07","2LD 07","2LD 07"]
[null,null,"2LD 08",{"$nulls":5},"2LD 08","2LD 08","2LD 08","2LD 08","2LD 08","2LD 08"]
[null,null,"2LD 09",{"$nulls":5},"2LD 09","2LD 09","2LD 09","2LD 09","2LD 09","2LD 09"]
[null,null,"2LD 10",{"$nulls":5},"2LD 10","2LD 10","2LD 10","2LD 10","2LD 10","2LD 10"]
[null,null,"2LD 11",{"$nulls":5},"2LD 11","2LD 11","2LD 11","2LD 11","2LD 11","2LD 11"]
[null,null,"2LD 12",{"$nulls":5},"2LD 12","2LD 12","2LD 12","2LD 12","2LD 12","2LD 12"]
[null,null,"Platzierung:",{"$nulls":5},"Umístění: ","Position: ","Platzierung:","Umieszczenie:","Plaatsing:","Emplacement : "]
[null,null,"in die Öffnung",{"$nulls":5},"do otvoru","in the opening","in die Öffnung","do otworu","in de opening","dans l’orifice"]
[null,null,"hinter die Öffnung",{"$nulls":5},"za otvor","behind the opening","hinter die Öffnung","za otwór","achter de opening","derrière l’orifice"]
[null,null,"vor die Öffnung",{"$nulls":5},"před otvor","front of opening","vor die Öffnung","przed otwór","vóór de opening","devant l’orifice"]
[null,null,": außen",{"$nulls":5},": ven",": out",": außen",": na zewnątrz",": naar buiten",": vers l’extérieur"]
[null,null,": innen",{"$nulls":5},": dovnitř",": in",": innen",": do wewnątrz",": naar binnen",": vers l’intérieur"]
[null,null,"Klinke: ",{"$nulls":5},"Klika:","Handle: ","Klinke: ","Klamka: ","Deurkruk:","Poign.: "]
[null,null,"im linken Flügel",{"$nulls":5},"v levém křídle","in left leaf","im linken Flügel","w lewym skrz.","in de linkerdeur","d. le batt. de gauche"]
[null,null,"im rechten Flügel",{"$nulls":5},"v pravém křídle","in right leaf","im rechten Flügel","w prawym skrz.","in de rechterdeur","d. le batt. de droite"]
[null,null,"Lackierung der Rahmen- und Flügelprofile",{"$nulls":5},"Lakování profilů rámu a křídel","Painting of frame's and leaves' profiles","Lackierung der Rahmen- und Flügelprofile","Lakierowanie profili ramy i skrzydeł","Kleur van frame- en vleugelprofielen","Peinture des profilés du cadre et des battants"]
[null,null,"Lackierung der Rahmen- und Flügelprofile",{"$nulls":5},"Lakování profilů rámu a křídla","Painting of frame's and leaf's profiles","Lackierung der Rahmen- und Flügelprofile","Lakierowanie profili ramy i skrzydła","Kleur van frame- en vleugelprofielen","Peinture des profilés du cadre et du battant"]
[null,null,"Lackierung der Rahmen- und Flügel- und Oberlichtprofile",{"$nulls":5},"Lakování profilů rámu, křídla, nadsvětlíku","Painting of frame's, leaf's and fixed top panel profiles","Lackierung der Rahmen- und Flügel- und Oberlichtprofile","Lakierowanie profili ramy, skrzydła i nadświetla","Kleur van frame-, vleugel- en bovenprofielen","Peinture des profilés du cadre et du battant"]
[null,null,"Lackierung der Bänder (ist nur bei Rahmenlackierung der Bänderseite möglich)",{"$nulls":5},"Lakování pantů (pouze při lakování příslušné strany profilů)","Painting of hinges (only available if hinged side of profiles is painted)","Lackierung der Bänder (ist nur bei Rahmenlackierung der Bänderseite möglich)","Lakierowanie zawiasów (tylko przy malowaniu odpowiedniej strony profili)","Verven scharnieren (alleen mogelijk als scharnierzijde van profielen is geverfd)","Peinture des charnières (quand les profils sont laqués)"]
[null,null,"Lackierung der Alu-Leisten (ist nur bei Innen-Rahmenlackierung möglich)",{"$nulls":5},"Lakování zasklívacích lišt (pouze při lakování vnitřní strany profilů křídla)","Painting of glazing lathes (only available if inner side of profiles is painted)","Lackierung der Alu-Leisten (ist nur bei Innen-Rahmenlackierung möglich)","Lakierowanie listew przyszybowych (tylko przy malowaniu wewnętrznych profili skrzydła)","Verven beglazingsstrips (alleen mogelijk als binnenkant van de profielen is geverfd)","Peintures des joints de vitrage (quand les profils intérieurs sont laqués)"]
[null,null,"Typ der Verriegelung",{"$nulls":5},"Typ zarážky","Door stopper","Typ der Verriegelung","Rodzaj ogranicznika","Type vanger","Type d’arrêt de porte"]
[null,null,"Fixierung des Gehflügels",{"$nulls":5},"Aretace otevřeného křídla","Securing of opened leaf","Fixierung des Gehflügels","Blokowanie otwartego  skrzydła","Vergrendeling geopend deurblad","Type d´arrêt de battant ouvert"]
[null,null,"Ohne Fixierung (Standard)",{"$nulls":5},"Bez aretace (standard)","No securing (default option)","Ohne Fixierung (Standard)","Bez blokowania (standard)","Geen vergrendeling (standaard optie)","Sans arrêt (standard)"]
[null,null,"Feststellfuß - ausziehbar 180mm",{"$nulls":5},"Výsuvný zášlap 180mm","Sliding stopper 180mm","Feststellfuß - ausziehbar 180mm","Wysuwany ogranicznik","Uitschuifbare voetgrendel 180 mm","Arrêt de porte coulissant 180 mm"]
[null,null,"Feststellfuß - aufklappbar 400mm",{"$nulls":5},"Výklopný zášlap 400mm","Tipping stopper 400 mm","Feststellfuß - aufklappbar 400mm","Składany ogranicznik","Uitklapbare voetgrendel 400mm","Arrêt de porte basculant 400 mm"]
[null,null,"Methode der Verankerung",{"$nulls":5},"Způsob kotvení","Style of installation","Methode der Verankerung","Sposób instalacji","Wijze van verankering","Mode d’ancrage"]
[null,null,"Mit dem Winkelanker",{"$nulls":5},"Pomocí úhelníků (standard)","By angle brackets (default option)","Mit dem Winkelanker","Za pomocą kątowników (standard)","Met winkelhaken (standaard)","À l’aide d’équerres (standard)"]
[null,null,"Befestigungswinkel (Standard)",{"$nulls":5},"Kotvící plech (standard)","Anchoring strips (default option)","Befestigungswinkel (Standard)","Płyta kotwiąca","Verankeringstrips (standaard optie)","Plaque d'ancrage (standard)"]
[null,null,"Durch den Rahmen (nur 2LD 01, 02, 03, 04)",{"$nulls":5},"Skrz rám (pouze 2KV 01, 02, 03, 04)","Throught frame (only 2LD 01, 02, 03, 04)","Durch den Rahmen (nur 2LD 01, 02, 03, 04)","Przez ramę (tylko 2LD 01, 02, 03, 04)","Door het frame (alleen 2LD 01, 02, 03, 04)","Au travers du cadre (uniquement 2LD 01, 02, 03, 04)"]
[null,null,"Durch den Rahmen (nur MD 01, 02, 03, 04)",{"$nulls":5},"Skrz rám (pouze MD 01, 02, 03, 04)","Throught frame (only MD 01, 02, 03, 04)","Durch den Rahmen (nur MD 01, 02, 03, 04)","Przez ramę (tylko MD 01, 02, 03, 04)","Door het frame (alleen MD, 01, 02, 03, 04)","Au travers du cadre (uniquement MD 01, 02, 03, 04)"]
[null,null,"Durch den Rahmen",{"$nulls":5},"Skrz rám","Throught frame","Durch den Rahmen","Przez ramę","Door het frame","Au travers du cadre"]
[null,null,"Torflügelsymmetrie",{"$nulls":5},"Souměrnost křídel","Symmetry of leaves","Torflügelsymmetrie","Symetria skrzydeł","Symmetrie van de vleugels","Symétrie des battants"]
[null,null,"Ja, Torflügel haben gl. Breite",{"$nulls":5},"Ano (křídla stejně široká)","Yes, equal width of both leaves","Ja, Torflügel haben gl. Breite","Tak (skrzydła o tej samej szerokości)","Ja (deurbladen even breed)","Oui (les battants ont la même largeur)"]
[null,null,"Nein, Torfl. haben versch. Breite",{"$nulls":5},"Ne (křídla s různou šířkou)","No, leaves with different width","Nein, Torfl. haben versch. Breite","Nie (skrzydła o różnej szerokości)","Nee (deurbl. van verschill. breedtes)","Non (chaque batt. a une largeur diff.)"]
[null,null,"Breite des linken Flügels",{"$nulls":5},"Šířka levého křídla","Width of left leaf","Breite des linken Flügels","Szerokość lewego skrzydła","Breedte van de linker deurblad","Largeur du battant gauche"]
[null,null,{"$f":"VLOOKUP(I258,I:N,$C$1,FALSE)","v":"Die Breite des rechten Flügels wird"},{"$nulls":5},"Šířku pravého křídla","Width of right leaf is","Die Breite des rechten Flügels wird","Szerokość prawego skrzydła","Breedte van de rechter deurblad","Largeur du battant de droite"]
[null,null,"von TOORS kalkuliert.",{"$nulls":5},"dopočítá TOORS","calculated by TOORS","von TOORS kalkuliert.","doliczy TOORS","wordt berekend door TOORS","sera calculé par TOORS"]
[null,null,"Füllen Sie bitte entweder die Öffnungsmaße oder die Rahmenaußenmaße aus. Die Ausfüllung der beiden Maßentypen kann die Mehrdeutigkeit der Torspezifikation verursachen.",{"$nulls":5},"Vyplňte prosím buď rozměry otvoru nebo rozměry rámu. Vyplnění obou typů rozměrů může způsobit nejednoznačnost definice rozměrů.","Please fill in either opening's dimensions or frame's dimensions. Filling in both types of dimensions could cause ambiguity in door specification.","Füllen Sie bitte entweder die Öffnungsmaße oder die Rahmenaußenmaße aus. Die Ausfüllung der beiden Maßentypen kann die Mehrdeutigkeit der Torspezifikation verursachen.","Proszę wpisać bądź wymiary otworu lub wymiary ramy. Wpisanie obu rodzajów wymiarów może spowodować niejednoznaczne zdefiniowanie wymiarów.","Vul ofwel de maten van de opening of de maten van het frame in. Invullen van beide type maten kan onduidelijkheid in de definiëring van de maten veroorzaken.","Veuillez saisir soit les dimensions de l’orifice, soit les dimensions du cadre. La saisie des deux types de dimensions pourrait en effet mener à des ambiguïtés concernant la définition des dimensions."]
[null,null,"Stückzahl im linken Flügel",{"$nulls":5},"Počet v levém křídle","Quantity in left leaf","Stückzahl im linken Flügel","Ilość w lewym skrzydle","Aantal in de linkervleugel","Nombre dans le battant gauche"]
[null,null,"Stückzahl im rechten Flügel",{"$nulls":5},"Počet v pravém křídle","Quantity in right leaf","Stückzahl im rechten Flügel","Ilość w prawym skrzydle","Aantal in de rechtervleugel","Nombre dans le battant droit"]
[null,null,"MD 01",{"$nulls":5},"MD 01","MD 01","MD 01","MD 01","MD 01","MD 01"]
[null,null,"MD 02",{"$nulls":5},"MD 02","MD 02","MD 02","MD 02","MD 02","MD 02"]
[null,null,"MD 03",{"$nulls":5},"MD 03","MD 03","MD 03","MD 03","MD 03","MD 03"]
[null,null,"MD 04",{"$nulls":5},"MD 04","MD 04","MD 04","MD 04","MD 04","MD 04"]
[null,null,"MD 05",{"$nulls":5},"MD 05","MD 05","MD 05","MD 05","MD 05","MD 05"]
[null,null,"MD 06",{"$nulls":5},"MD 06","MD 06","MD 06","MD 06","MD 06","MD 06"]
[null,null,"MD 07",{"$nulls":5},"MD 07","MD 07","MD 07","MD 07","MD 07","MD 07"]
[null,null,"MD 08",{"$nulls":5},"MD 08","MD 08","MD 08","MD 08","MD 08","MD 08"]
[null,null,"MD 09",{"$nulls":5},"MD 09","MD 09","MD 09","MD 09","MD 09","MD 09"]
[null,null,"MD 10",{"$nulls":5},"MD 10","MD 10","MD 10","MD 10","MD 10","MD 10"]
[null,null,"MD 11",{"$nulls":5},"MD 11","MD 11","MD 11","MD 11","MD 11","MD 11"]
[null,null,"MD 12",{"$nulls":5},"MD 12","MD 12","MD 12","MD 12","MD 12","MD 12"]
[null,null,"Optische Ausführung der Nebentür",{"$nulls":5},"Informace o vzhledu ManDoor","Information about design of ManDoor","Optische Ausführung der Nebentür","Informacje o wyglądzie ManDoor","Informatie over de visuele uitvoering van ManDoor","Informations relative au design de la porte ManDoor"]
[null,null,"Ohne Oberlicht",{"$nulls":5},"Bez nadsvětlíku","Without fixed top panel","Ohne Oberlicht","Bez nadświetla","Zonder bovenlicht","Sans imposte"]
[null,null,"Mit Oberlicht",{"$nulls":5},"S nadsvětlíkem","Including fixed top panel","Mit Oberlicht","Z nadświetlem","Met bovenlicht","Avec imposte"]
[null,null,"Türschließer",{"$nulls":5},"Zavírač","Door spring","Türschließer","Samozamykacz","Deurveer/dranger","Ferme-porte"]
[null,null,"Ja, mit Leiste",{"$nulls":5},"Ano, s lištou","Yes, with sliding arm","Ja, mit Leiste","Tak, z listwą","Ja, met schuifarm","Avec bras coulissant"]
[null,null,"Wenn diese Position mit einer anderen Position ansichtsgleich gefertigt werden soll, muss man diese Information ausdrücklich bemerken.",{"$nulls":5},"V případě požadavku na pohledovou shodu s vedle stojícími vraty uveďte do poznámky informaci o vratech, se kterými má být tato pozice pohledově shodná.","In case of requirement for door alignment with other door please clearly specify for which door (order/position).","Wenn diese Position mit einer anderen Position ansichtsgleich gefertigt werden soll, muss man diese Information ausdrücklich bemerken.","W przypadku wymogu zgodności widoku z obok stojącą bramą, podaj w uwagach informacje o bramie, z którą musi być ta pozycja wizualnie taka sama.","Wanneer de wens er is om een deur er gelijk uit te laten zien met een andere deur, geef dan duidelijk aan voor welke deur (order/positie).","En cas des alignements des panneaux avec des portes attenants, notez cette information sur la commande avec lesquelles portes désirez-vous les alignements des panneaux."]
[null,null,"nicht möglich für",{"$nulls":5},"nelze pro","not possible for","nicht möglich für","nie można dla","niet mogelijk voor","pas disponible pour"]
[null,null,"Elektrische Türöffner",{"$nulls":5},"Elektrozámek","Electric lock","Elektrische Türöffner","Elektrozaczep","Elektrisch slot","Gâche électrique"]
[null,null,"nur für 2LDKL02, 2LDKL05",{"$nulls":5},"pouze pro 2LDKL02, 2LDKL05","only for 2LDKL02, 2LDKL05","nur für 2LDKL02, 2LDKL05","tylko 2LDKL02, 2LDKL05","alleen voor 2LDKL02, 2LDKL05","uniquement 2LDKL02, 2LDKL05"]
[null,null,"nur für MDKL02, MDKL06",{"$nulls":5},"pouze pro MDKL02, MDKL06","only for MDKL02, MDKL06","nur für MDKL02, MDKL06","tylko MDKL02, MDKL06","alleen voor MDKL02, MDKL06","uniquement MDKL02, MDKL06"]
[null,null,"Klinke/Klinke, Schild, Standardschloss",{"$nulls":5},"Klika/klika, štítek, vložka klíč/klíč, standardní zámek","Handle /handle, shield, cylindrical lock-key hole, standard lock ","Klinke/Klinke, Schild, Standardschloss","Klamka/klamka, tarczka, wkładka klucz/klucz, zamek standardowy ","Deurkruk/deurkruk, schild, cilinder sleutel/sleutel, standaard-slot","Poignée/poignée, plaquette, serrure standard/ cylindrique"]
[null,null,"Knauf/Klinke, Schild, Standardschloss",{"$nulls":5},"Madlo/klika, štítek, vložka klíč/klíč, standardní zámek","Grip/handle, shield, cylindrical lock - key hole, standard lock","Knauf/Klinke, Schild, Standardschloss","Uchwyt/klamka, tarczka, wkładka klucz/klucz, zamek standardowy ","Vast handgreep/deurkruk, schild, cilinder sleutel/sleutel, standaard-slot","Bouton/poignée, plaquette, serrure standard/ cylindrique"]
[null,null,"Klinke/Klinke, Schild, Panikschloss",{"$nulls":5},"Klika/klika, štítek, vložka klíč/klíč, panikový zámek","Handle /handle, shield, cylindrical lock-key hole, panic lock","Klinke/Klinke, Schild, Panikschloss","Klamka/klamka, tarczka, wkładka klucz/klucz, zamek antypaniczny","Deurkruk/deurkruk, schild, cilinder sleutel/sleutel, paniek slot","Poignée/poignée, plaquette, serrure anti-panique"]
[null,null,"Knauf/Klinke, Schild, Panikschloss",{"$nulls":5},"Madlo/klika, štítek, vložka klíč/klíč, panikový zámek","Grip/handle, shield, cylindrical lock– key hole, panic lock","Knauf/Klinke, Schild, Panikschloss","Uchwyt/klamka, tarczka, wkładka klucz/klucz, zamek antypaniczny","Vast handgreep/deurkruk, cilinder sleutel/sleutel, schild, paniek slot","Bouton/poignée, plaquette, serrure anti-panique"]
[null,null,"Klinke/Panikbeschlag—Stange, Schild",{"$nulls":5},"Klika/panikové kování, štítek, vložka klíč/klíč","Handle /panic exit bar, shield, cylindrical lock-key hole, panic lock","Klinke/Panikbeschlag—Stange, Schild","Klamka/okucia antypaniczne, tarczka, wkładka klucz/klucz","Deurkruk/paniek balk, schild, cilinder sleutel/sleutel","Poignée/monture anti-panique, plaquette,"]
[null,null,"Knauf/Panikbeschlag—Stange, Schild",{"$nulls":5},"Madlo/panikové kování, štítek, vložka klíč/klíč","Grip/panic exit bar, shield, cylindrical lock-key hole, panic lock","Knauf/Panikbeschlag—Stange, Schild","Uchwyt/okucia antypaniczne, szyld, wkładka klucz/klucz","Vast handgreep/paniek balk, schild, cilinder sleutel/sleutel","Bouton/monture anti-panique, plaquette,"]
[null,null,"Klinke/Klinke, Schild, 3-fachschloss",{"$nulls":5},"Klika/klika, štítek, vložka klíč/klíč, 3bodový zámek","Handle /handle, shield, cylindrical lock-key hole, 3-point lock","Klinke/Klinke, Schild, 3-fachschloss","Klamka/klamka, tarczka, wkładka klucz/klucz, zamek trzypunktowy","Deurkruk/deurkruk, schild, cilinder sleutel/sleutel, 3 puntslot","Poignée / poignée, plaquette, serrure 3 points"]
[null,null,"Knauf/Klinke, Schild, 3-fachschloss",{"$nulls":5},"Madlo/klika, štítek, vložka klíč/klíč, 3bodový zámek","Grip /handle, shield, cylindrical lock-key hole, 3-point lock","Knauf/Klinke, Schild, 3-fachschloss","Uchwyt/klamka, tarczka, wkładka klucz/klucz, zamek trzypunktowy","Vast handgreep/deurkruk, schild, cilinder sleutel/sleutel, 3 puntslot","Bouton/poignée, plaquette, serrure 3 points"]
[null,null,"der Maß kann bei Ansichsgleichheit von der Standardausführung abweichen",{"$nulls":5},"rozměr se může lišit při požadavku pohledové shody s vraty","dimensions can vary in case of requirement for alignment with sectional door","der Maß kann bei Ansichsgleichheit von der Standardausführung abweichen","Wymiar może się różnić w przypadku wymogu zgodności widoku z bramą","Afmetingen kunnen variëren in het geval er wensen zijn voor gelijkenis met sectionaaldeur","Les dimensions se peuvent variées en cas de la demande des alignements des panneaux"]
[null,null,"Maße mm (BxH)",{"$nulls":5},"Rozměry mm (WxH)","Dimension mm (WxH)","Maße mm (BxH)","Wymiar mm (WxH)","Afmeting mm (WxH)","Dimensions mm (WxH)"]
[null,null,"Design des Torflügels",{"$nulls":5},"Design křídla","Design of door leaf","Design des Torflügels","Design skrzydła drzwi","Ontwerp van deurblad","Design de l'aile de porte"]
[null,null,"Breite Endkappen / Doppelscharniere",{"$nulls":5},"Široké boční plechy/dvojité  boční panty","Wide end caps/double side hinges","Breite Endkappen / Doppelscharniere","Szerokie blachy boczne/podwójne zawiasy boczne","Brede eindkappen/dubbele zijscharnieren","Cornière de finition large/Pentures latérales dble"]
[null,null,"Ja (Standard für Torbreite W>=5000 mm)",{"$nulls":5},"Ano (standard pro W>=5000 mm)","Yes, (default for W>=5000 mm)","Ja (Standard für Torbreite W>=5000 mm)","Tak (standard dla W>=5000 mm)","Ja (standaard voor B>=5000 mm)","Oui (standard pour W>=5000 mm)"]
[null,null,"Ja (Standard für Torbreite W>=5001 mm)",{"$nulls":5},"Ano (standard pro W>=5001 mm)","Yes, (default for W>=5001 mm)","Ja (Standard für Torbreite W>=5001 mm)","Tak (standard dla W>=5001 mm)","Ja (standaard voor B>=5001 mm)","Oui (standard pour W>=5001 mm)"]
[null,null,"Fixierung des Standflügels",{"$nulls":5},"Aretace zavřeného pasivního křídla","Securing of closed passive leaf","Fixierung des Standflügels","Blokowanie zamkniętego skrzydła pasywnego","Vergrendeling gesloten deurblad","Type d´arrêt de battant fermé (passif)"]
[null,null,"Treibriegel oben + unten (Standard bis 2250)",{"$nulls":5},"Zástrč dole a nahoře (standard do 2250 mm)","Sliding bolt top and bottom","Treibriegel oben + unten (Standard bis 2250)","Rygiel (w górę i w dół)","Grendel (boven en beneden)","Barrière haut et bas (standard dans 2250 mm)"]
[null,null,"Falztreibriegel (Standard ab 2251mm)",{"$nulls":5},"Skrytá rozvora (standard od 2251 mm)","Hidden centre catch with rods","Falztreibriegel (Standard ab 2251mm)","Ukryty rozstaw osi (standard od 2251 mm)","Kantschuifvergrendeling in het midden","Verrou à  entailler (standard depuis 2251 mm)"]
[null,null,0,{"$nulls":5},"Vratová rozvora (baskule)","Centre catch with rods"]
[null,null,"Ausführung der Profile",{"$nulls":5},"Provedení profilů","Version of profiles","Ausführung der Profile","Wykonanie profili","Version of profiles","Réalisation des profils"]
[null,null,"45mm, ohne thermische Trennung",{"$nulls":5},"45mm, bez přeruš.tepel.mostu","45mm, non thermal system","45mm, ohne thermische Trennung","45mm, bez przegrody termicznej","45mm, niet gebroken koude brug","45mm,sans rupt.du pont therm."]
[null,null,"60mm, mit thermischer Trennung",{"$nulls":5},"60mm, přerušený tepelný most","60mm, broken thermal bridge","60mm, mit thermischer Trennung","60mm, z przegrodą termiczną","60mm, gebroken koude brug","60mm,rupteur du pont thermique"]
[null,null,"nur für",{"$nulls":5},"pouze pro","only for","nur für","tylko","alleen voor","uniquement"]

{"sheet":"Selections","index":2,"n_rows":85,"n_cols":56,"rows_kept":85,"hidden":true}
["Výběr jazyka",null,"Výběry pro INDY"]
["CZ",null,{"$f":"Translation!A95","v":0},{"$f":"Translation!A106","v":0},"Okna INDY",{"$f":"Translation!A92","v":0},{"$f":"Translation!A93","v":0},{"$f":"Translation!A94","v":0},{"$f":"Translation!A163","v":0},{"$f":"Translation!A196","v":0},{"$nulls":3},{"$f":"Translation!A144&\" \"&Translation!A11","v":" "}]
["EN",{"$nulls":12},0,3]
["DE",null,{"$f":"Translation!A96","v":0},{"$f":"Translation!A108","v":0},{"$f":"Translation!A76","v":0},{"$f":"Translation!A118","v":0},{"$f":"Translation!A125","v":0},{"$f":"Translation!A127","v":0},{"$f":"Translation!A164","v":0},{"$f":"Translation!A197","v":0},{"$nulls":3},1871,4]
["PL",null,{"$f":"Translation!A97","v":0},{"$f":"Translation!A109","v":0},{"$f":"Translation!A77","v":0},{"$f":"Translation!A119","v":0},{"$f":"Translation!A126","v":0},{"$f":"Translation!A128","v":0},{"$f":"Translation!A165","v":0},{"$f":"Translation!A198","v":0},{"$nulls":3},2501,5]
["NL",null,{"$f":"Translation!A98","v":0},{"$f":"Translation!A107","v":0},{"$f":"Translation!A80","v":0},{"$f":"Translation!A120","v":0},{"$nulls":3},{"$f":"Translation!A199","v":0},{"$nulls":3},3101,6]
["FR",null,{"$f":"Translation!A99","v":0},null,{"$f":"Translation!A79","v":0},{"$f":"Translation!A121","v":0},{"$nulls":3},{"$f":"Translation!A200","v":0},{"$nulls":3},3701,7]
[null,null,{"$f":"Translation!A100","v":0},null,{"$f":"Translation!A78","v":0},{"$f":"Translation!A122","v":0},{"$nulls":7},4311,8]
["Ano",null,{"$f":"Translation!A101","v":0},null,{"$f":"Translation!A81","v":0},{"$f":"Translation!A123","v":0},{"$nulls":7},4921,9]
["Ne",null,{"$f":"Translation!A102","v":0},null,{"$f":"Translation!A82","v":0},{"$f":"Translation!A124","v":0},{"$nulls":7},5531,10]
[null,null,{"$f":"Translation!A103","v":0},null,{"$f":"Translation!A83","v":0},{"$nulls":8},6141,11]
[{"$nulls":4},{"$f":"Translation!A84","v":0}]
[{"$nulls":4},{"$f":"Translation!A85","v":0}]
[]
[null,null,"Výběry pro GUARDY"]
[null,null,{"$f":"Translation!B95","v":0},{"$f":"Translation!B106","v":0},{"$f":"Translation!B75","v":0},{"$f":"Translation!B92","v":0},{"$f":"Translation!B93","v":0},{"$f":"Translation!B94","v":0},{"$f":"Translation!B163","v":0},{"$f":"Translation!B196","v":0}]
[]
[null,null,{"$f":"Translation!B96","v":0},{"$f":"Translation!B107","v":0},{"$f":"Translation!B86","v":0},{"$f":"Translation!B118","v":0},{"$f":"Translation!B125","v":0},{"$f":"Translation!B127","v":0},{"$f":"Translation!B164","v":0},{"$f":"Translation!B197","v":0}]
[null,null,{"$f":"Translation!B97","v":0},{"$f":"Translation!B110","v":0},{"$f":"Translation!B87","v":0},{"$f":"Translation!B119","v":0},{"$f":"Translation!B126","v":0},{"$f":"Translation!B128","v":0},{"$f":"Translation!B165","v":0},{"$f":"Translation!B198","v":0}]
[null,null,{"$f":"Translation!B98","v":0},{"$f":"Translation!B111","v":0},{"$f":"Translation!B88","v":0},{"$f":"Translation!B120","v":0},{"$nulls":3},{"$f":"Translation!B201","v":0}]
[null,null,{"$f":"Translation!B100","v":0},{"$f":"Translation!B108","v":0},{"$f":"Translation!B89","v":0},{"$f":"Translation!B121","v":0}]
[null,null,{"$f":"Translation!B103","v":0},{"$f":"Translation!B109","v":0},{"$f":"Translation!B79","v":0},{"$f":"Translation!B122","v":0}]
[null,null,{"$f":"Translation!B101","v":0},{"$f":"Translation!B112","v":0},{"$f":"Translation!B90","v":0},{"$f":"Translation!B123","v":0}]
[null,null,{"$f":"Translation!B102","v":0},{"$f":"Translation!B113","v":0},{"$f":"Translation!B81","v":0},{"$f":"Translation!B124","v":0}]
[null,null,{"$f":"Translation!B104","v":0},null,{"$f":"Translation!B91","v":0}]
[null,null,{"$f":"Translation!B105","v":0},null,{"$f":"Translation!B82","v":0}]
[{"$nulls":4},{"$f":"Translation!B78","v":0}]
[{"$nulls":4},{"$f":"Translation!B80","v":0}]
[{"$nulls":4},{"$f":"Translation!B76","v":0}]
[{"$nulls":4},{"$f":"Translation!B77","v":0}]
[]
[null,null,"Výběry pro EXT"]
[null,null,{"$f":"Translation!C95","v":"Verschließbarer Griff"},{"$f":"Translation!C106","v":"Handgriffe"},{"$f":"Translation!C75","v":"Fenster"},{"$f":"Translation!C92","v":"Alu-Rahmen Sektion"},{"$f":"Translation!C93","v":"Alu-Sektion mit isolierter Füllung"},{"$f":"Translation!C94","v":"Streckgitter"},{"$f":"Translation!C163","v":"Lüftungsgitter"},{"$f":"Translation!C196","v":"Befestigung der waagrechten Schienen"}]
[]
[null,null,{"$f":"Translation!C96","v":"490; Schubriegel"},{"$f":"Translation!C107","v":"466; Handgriff - einseitig"},{"$f":"Translation!C86","v":"204; eckig 3"},{"$f":"Translation!C118","v":"250; Doppelverglasung SAN UV"},{"$f":"Translation!C125","v":"270; Isolierte Alu-Stucco Füllung"},{"$f":"Translation!C127","v":"280; Streckgitter 16/8"},{"$f":"Translation!C164","v":"Scharz/weiß"},{"$f":"Translation!C197","v":"30x30, Anhängewinkel mit Rund-Löchern"}]
[null,null,{"$f":"Translation!C97","v":"491; Schubriegel"},{"$f":"Translation!C110","v":"467; Handgriff - beiderseits"},{"$f":"Translation!C87","v":"206; eckig 4"},{"$f":"Translation!C119","v":"220; Einfachverglasung SAN UV"},{"$f":"Translation!C126","v":"270.20; Isolierte Alu-Glatte Füllung"},{"$f":"Translation!C128","v":"280; Streckgitter 22/12"},{"$f":"Translation!C165","v":"Weiß/weiß"},{"$f":"Translation!C198","v":"30x30, Anhängewinkel mit Oval-Löchern"}]
[null,null,{"$f":"Translation!C100","v":"495; verschließbarer Griff"},{"$f":"Translation!C111","v":"468; Handgriff - beiderseits"},{"$f":"Translation!C88","v":"210; eckig 7"},{"$f":"Translation!C120","v":"260; Doppelverglasung Polycarbonat"},{"$nulls":3},{"$f":"Translation!C201","v":"\"L\" Profile (nur für LHF-C, LHR-C)"}]
[null,null,{"$f":"Translation!C101","v":"497A; verschließbarer Griff"},{"$f":"Translation!C108","v":"460; Handgriff - beiderseits"},{"$f":"Translation!C89","v":"208; eckig 5"},{"$f":"Translation!C121","v":"230; Einfachverglasung Polycarbonat"}]
[null,null,{"$f":"Translation!C102","v":"497B; verschließbarer Griff"},{"$f":"Translation!C109","v":"463; Handgriff - beiderseits"},{"$f":"Translation!C79","v":"216; eckig 9"},{"$f":"Translation!C122","v":"250.10; Einfachverglasung SAN UV, 1x kratzfest"}]
[null,null,{"$f":"Translation!C104","v":"499B; verschließbarer Griff"},{"$f":"Translation!C112","v":"469; Handgriff - beiderseits"},{"$f":"Translation!C90","v":"202; eckig 10"},{"$f":"Translation!C123","v":"250.20; Doppelverglasung SAN UV, 2x kratzfest"}]
[null,null,{"$f":"Translation!C105","v":"499S; verschließbarer Griff"},{"$f":"Translation!C113","v":"469S; Handgriff - beiderseits"},{"$f":"Translation!C81","v":"218; eckig, Edelstahl"},{"$f":"Translation!C124","v":"250.Co; farbige Doppelverglasung SAN UV "}]
[{"$nulls":4},{"$f":"Translation!C91","v":"219; eckig,  Edelstahl"}]
[{"$nulls":4},{"$f":"Translation!C82","v":"215; rund, Edelstahl"}]
[{"$nulls":4},{"$f":"Translation!C78","v":"207; eckig 2"}]
[{"$nulls":4},{"$f":"Translation!C80","v":"217; rund"}]
[{"$nulls":4},{"$f":"Translation!C76","v":"203; oval 1, CLICK"}]
[{"$nulls":4},{"$f":"Translation!C77","v":"205; eckig 1, CLICK"}]
[]
[null,null,"Výběry pro MD NG"]
[{"$nulls":4},{"$f":"Translation!G75","v":0},{"$f":"Translation!G92","v":0}]
[]
[{"$nulls":4},{"$f":"Translation!G86","v":0},{"$f":"Translation!G118","v":0}]
[{"$nulls":4},{"$f":"Translation!G87","v":0},{"$f":"Translation!G119","v":0}]
[{"$nulls":4},{"$f":"Translation!G88","v":0},{"$f":"Translation!G120","v":0}]
[{"$nulls":3},"672; 9010/9010",{"$f":"Translation!G89","v":0},{"$f":"Translation!G121","v":0}]
[{"$nulls":4},{"$f":"Translation!G79","v":0},{"$f":"Translation!G122","v":0}]
[{"$nulls":4},{"$f":"Translation!G90","v":0},{"$f":"Translation!G123","v":0}]
[{"$nulls":4},{"$f":"Translation!G81","v":0},{"$f":"Translation!G124","v":0}]
[{"$nulls":4},{"$f":"Translation!G91","v":0}]
[{"$nulls":4},{"$f":"Translation!G82","v":0}]
[{"$nulls":4},{"$f":"Translation!G78","v":0}]
[{"$nulls":4},{"$f":"Translation!G80","v":0}]
[{"$nulls":4},{"$f":"Translation!G76","v":0}]
[{"$nulls":4},{"$f":"Translation!G77","v":0}]
[]
[null,null,"Výběry pro WD NG (2LD - double leaf door)"]
[{"$nulls":4},{"$f":"Translation!H75","v":0},{"$f":"Translation!H92","v":0}]
[]
[{"$nulls":4},{"$f":"Translation!H86","v":0},{"$f":"Translation!H118","v":0}]
[{"$nulls":4},{"$f":"Translation!H87","v":0},{"$f":"Translation!H119","v":0}]
[{"$nulls":4},{"$f":"Translation!H88","v":0},{"$f":"Translation!H120","v":0}]
[{"$nulls":4},{"$f":"Translation!H89","v":0},{"$f":"Translation!H121","v":0}]
[{"$nulls":4},{"$f":"Translation!H79","v":0},{"$f":"Translation!H122","v":0}]
[{"$nulls":4},{"$f":"Translation!H90","v":0},{"$f":"Translation!H123","v":0}]
[{"$nulls":4},{"$f":"Translation!H81","v":0},{"$f":"Translation!H124","v":0}]
[{"$nulls":4},{"$f":"Translation!H91","v":0}]
[{"$nulls":4},{"$f":"Translation!H82","v":0}]
[{"$nulls":4},{"$f":"Translation!H78","v":0}]
[{"$nulls":4},{"$f":"Translation!H80","v":0}]
[{"$nulls":4},{"$f":"Translation!H76","v":0}]
[{"$nulls":4},{"$f":"Translation!H77","v":0}]
[]
[]
[]
[{"$nulls":55},1649]